Publisher Label,Publisher URI,"Supplier ID","Supplier","Invoice No.","Amount £","Purpose","Transaction Number","Payment Date","Organisational Unit","Cost Centre(T)","Internal Category Number"
"Wolverhampton City Council","http://opendatacommunities.org/id/metropolitan-district-council/wolverhampton","708251","Total Gas & Power Limited","179888956","71.54","Electricity","190530068","21/11/2018","Corporate Asset Management","Central Utilities to Recharge","R2100"
"Wolverhampton City Council","http://opendatacommunities.org/id/metropolitan-district-council/wolverhampton","708251","Total Gas & Power Limited","179870036","285.37","Electricity","190529924","21/11/2018","Corporate Asset Management","Central Utilities to Recharge","R2100"
"Wolverhampton City Council","http://opendatacommunities.org/id/metropolitan-district-council/wolverhampton","708251","Total Gas & Power Limited","179870014","501.64","Electricity","190529926","21/11/2018","Schools","St Paul�s Church of England (Aided) School","R2100"
"Wolverhampton City Council","http://opendatacommunities.org/id/metropolitan-district-council/wolverhampton","708251","Total Gas & Power Limited","179869850","4,716.16","Electricity","190529942","21/11/2018","Schools","Colton Hills Community School","R2100"
"Wolverhampton City Council","http://opendatacommunities.org/id/metropolitan-district-council/wolverhampton","708251","Total Gas & Power Limited","179889407","183.93","Electricity","190530014","21/11/2018","Corporate Asset Management","Central Utilities to Recharge","R2100"
"Wolverhampton City Council","http://opendatacommunities.org/id/metropolitan-district-council/wolverhampton","708251","Total Gas & Power Limited","179889770","844.95","Electricity","190529975","21/11/2018","Corporate Asset Management","Central Utilities to Recharge","R2100"
"Wolverhampton City Council","http://opendatacommunities.org/id/metropolitan-district-council/wolverhampton","708251","Total Gas & Power Limited","179869717","309.83","Electricity","190529960","21/11/2018","Schools","St Anthony�s Catholic Primary School","R2100"
"Wolverhampton City Council","http://opendatacommunities.org/id/metropolitan-district-council/wolverhampton","708251","Total Gas & Power Limited","179889803","322.56","Electricity","190529972","21/11/2018","Corporate Asset Management","Central Utilities to Recharge","R2100"
"Wolverhampton City Council","http://opendatacommunities.org/id/metropolitan-district-council/wolverhampton","708251","Total Gas & Power Limited","179869630","34.72","Electricity","190529968","21/11/2018","Corporate Asset Management","Central Utilities to Recharge","R2100"
"Wolverhampton City Council","http://opendatacommunities.org/id/metropolitan-district-council/wolverhampton","708251","Total Gas & Power Limited","179889671","617.30","Electricity","190529987","21/11/2018","Corporate Asset Management","Central Utilities to Recharge","R2100"
"Wolverhampton City Council","http://opendatacommunities.org/id/metropolitan-district-council/wolverhampton","708251","Total Gas & Power Limited","179889363","74.79","Electricity","190530018","21/11/2018","Corporate Asset Management","Central Utilities to Recharge","R2100"
"Wolverhampton City Council","http://opendatacommunities.org/id/metropolitan-district-council/wolverhampton","708251","Total Gas & Power Limited","179889198","35.23","Electricity","190530035","21/11/2018","Facilities Management","Management of Vacant Properties","R2100"
"Wolverhampton City Council","http://opendatacommunities.org/id/metropolitan-district-council/wolverhampton","708251","Total Gas & Power Limited","179870080","72.99","Electricity","190530067","21/11/2018","Corporate Asset Management","Central Utilities to Recharge","R2100"
"Wolverhampton City Council","http://opendatacommunities.org/id/metropolitan-district-council/wolverhampton","708251","Total Gas & Power Limited","179047335","742.87","Electricity","190530104","21/11/2018","Facilities Management","Management of Vacant Properties","R2100"
"Wolverhampton City Council","http://opendatacommunities.org/id/metropolitan-district-council/wolverhampton","708251","Total Gas & Power Limited","179888230","472.50","Electricity","190530158","21/11/2018","Schools","Eastfield Nursery","R2100"
"Wolverhampton City Council","http://opendatacommunities.org/id/metropolitan-district-council/wolverhampton","708251","Total Gas & Power Limited","179888440","871.52","Electricity","190530137","21/11/2018","Schools","Fallings Park Primary School","R2100"
"Wolverhampton City Council","http://opendatacommunities.org/id/metropolitan-district-council/wolverhampton","708251","Total Gas & Power Limited","179018988","756.65","Electricity","190530175","21/11/2018","Corporate Asset Management","Central Utilities to Recharge","R2100"
"Wolverhampton City Council","http://opendatacommunities.org/id/metropolitan-district-council/wolverhampton","708251","Total Gas & Power Limited","179888571","72.57","Electricity","190530126","21/11/2018","Schools","Stowheath Primary School","R2100"
"Wolverhampton City Council","http://opendatacommunities.org/id/metropolitan-district-council/wolverhampton","708251","Total Gas & Power Limited","166070470","460.41","Electricity","190530179","21/11/2018","Corporate Asset Management","Central Utilities to Recharge","R2100"
"Wolverhampton City Council","http://opendatacommunities.org/id/metropolitan-district-council/wolverhampton","708251","Total Gas & Power Limited","179869827","438.60","Electricity","190529945","21/11/2018","Corporate Asset Management","Central Utilities to Recharge","R2100"
"Wolverhampton City Council","http://opendatacommunities.org/id/metropolitan-district-council/wolverhampton","708251","Total Gas & Power Limited","179021474","257.04","Electricity","190530212","21/11/2018","Corporate Asset Management","Central Utilities to Recharge","R2100"
"Wolverhampton City Council","http://opendatacommunities.org/id/metropolitan-district-council/wolverhampton","708251","Total Gas & Power Limited","179869816","980.28","Electricity","190529946","21/11/2018","Corporate Asset Management","Central Utilities to Recharge","R2100"
"Wolverhampton City Council","http://opendatacommunities.org/id/metropolitan-district-council/wolverhampton","708251","Total Gas & Power Limited","179869981","861.92","Electricity","190529929","21/11/2018","Corporate Asset Management","Central Utilities to Recharge","R2100"
"Wolverhampton City Council","http://opendatacommunities.org/id/metropolitan-district-council/wolverhampton","708251","Total Gas & Power Limited","179869772","4,194.29","Electricity","190529950","21/11/2018","Corporate Asset Management","Central Utilities to Recharge","R2100"
"Wolverhampton City Council","http://opendatacommunities.org/id/metropolitan-district-council/wolverhampton","708251","Total Gas & Power Limited","179889583","166.92","Electricity","190529996","21/11/2018","Corporate Asset Management","Central Utilities to Recharge","R2100"
"Wolverhampton City Council","http://opendatacommunities.org/id/metropolitan-district-council/wolverhampton","708251","Total Gas & Power Limited","180587764","789.63","Electricity","190534185","29/11/2018","Housing Revenue Account","Hostels / Outreach","R2100"
"Wolverhampton City Council","http://opendatacommunities.org/id/metropolitan-district-council/wolverhampton","708251","Total Gas & Power Limited","180402062","384.01","Electricity","190534202","29/11/2018","Corporate Asset Management","Central Utilities to Recharge","R2100"
"Wolverhampton City Council","http://opendatacommunities.org/id/metropolitan-district-council/wolverhampton","708251","Total Gas & Power Limited","180586048","86.66","Electricity","190534218","29/11/2018","Corporate Asset Management","Central Utilities to Recharge","R2100"
"Wolverhampton City Council","http://opendatacommunities.org/id/metropolitan-district-council/wolverhampton","708251","Total Gas & Power Limited","180584904","100.67","Electricity","190534234","29/11/2018","Corporate Asset Management","Central Utilities to Recharge","R2100"
"Wolverhampton City Council","http://opendatacommunities.org/id/metropolitan-district-council/wolverhampton","708251","Total Gas & Power Limited","180424117","2,945.43","Electricity","190534249","29/11/2018","Corporate Asset Management","Central Utilities to Recharge","R2100"
"Wolverhampton City Council","http://opendatacommunities.org/id/metropolitan-district-council/wolverhampton","708251","Total Gas & Power Limited","180402381","2,779.67","Electricity","190534277","29/11/2018","Corporate Asset Management","Central Utilities to Recharge","R2100"
"Wolverhampton City Council","http://opendatacommunities.org/id/metropolitan-district-council/wolverhampton","708251","Total Gas & Power Limited","180402469","48.06","Electricity","190534264","29/11/2018","Corporate Asset Management","Central Utilities to Recharge","R2100"
"Wolverhampton City Council","http://opendatacommunities.org/id/metropolitan-district-council/wolverhampton","708251","Total Gas & Power Limited","180423611","441.30","Electricity","190534262","29/11/2018","Corporate Asset Management","Central Utilities to Recharge","R2100"
"Wolverhampton City Council","http://opendatacommunities.org/id/metropolitan-district-council/wolverhampton","708251","Total Gas & Power Limited","180423017","132.07","Electricity","190534298","29/11/2018","Schools","Long Knowle Primary School","R2100"
"Wolverhampton City Council","http://opendatacommunities.org/id/metropolitan-district-council/wolverhampton","708251","Total Gas & Power Limited","180583485","25.17","Electricity","190534283","29/11/2018","Operation & Maintenance of Existing Network","Rechargeable Works to Capital - Contract Annual Costs","R2100"
"Wolverhampton City Council","http://opendatacommunities.org/id/metropolitan-district-council/wolverhampton","708251","Total Gas & Power Limited","180423424","179.54","Electricity","190534308","29/11/2018","Corporate Asset Management","Central Utilities to Recharge","R2100"
"Wolverhampton City Council","http://opendatacommunities.org/id/metropolitan-district-council/wolverhampton","708251","Total Gas & Power Limited","180487169","180.52","Electricity","190534311","29/11/2018","Corporate Asset Management","Central Utilities to Recharge","R2100"
"Wolverhampton City Council","http://opendatacommunities.org/id/metropolitan-district-council/wolverhampton","708251","Total Gas & Power Limited","180584002","561.35","Electricity","190534314","29/11/2018","Corporate Asset Management","Central Utilities to Recharge","R2100"
"Wolverhampton City Council","http://opendatacommunities.org/id/metropolitan-district-council/wolverhampton","708251","Total Gas & Power Limited","180424095","1,895.34","Electricity","190534313","29/11/2018","Corporate Asset Management","Central Utilities to Recharge","R2100"
"Wolverhampton City Council","http://opendatacommunities.org/id/metropolitan-district-council/wolverhampton","708251","Total Gas & Power Limited","179700560","349.13","Electricity","190534366","29/11/2018","Corporate Asset Management","Central Utilities to Recharge","R2100"
"Wolverhampton City Council","http://opendatacommunities.org/id/metropolitan-district-council/wolverhampton","708251","Total Gas & Power Limited","179418783","27.51","Electricity","190534352","29/11/2018","Facilities Management","Management of Vacant Properties","R2100"
"Wolverhampton City Council","http://opendatacommunities.org/id/metropolitan-district-council/wolverhampton","708251","Total Gas & Power Limited","180587951","133.60","Electricity","190534338","29/11/2018","Corporate Asset Management","Central Utilities to Recharge","R2100"
"Wolverhampton City Council","http://opendatacommunities.org/id/metropolitan-district-council/wolverhampton","708251","Total Gas & Power Limited","180402183","1,676.77","Electricity","190534384","29/11/2018","Schools","St Luke�s Church of England Aided Primary School","R2100"
"Wolverhampton City Council","http://opendatacommunities.org/id/metropolitan-district-council/wolverhampton","708251","Total Gas & Power Limited","180487026","84.49","Electricity","190534379","29/11/2018","Corporate Asset Management","Central Utilities to Recharge","R2100"
"Wolverhampton City Council","http://opendatacommunities.org/id/metropolitan-district-council/wolverhampton","708251","Total Gas & Power Limited","180402293","1,865.21","Electricity","190534404","29/11/2018","Schools","Trinity Church of England Primary School","R2100"
"Wolverhampton City Council","http://opendatacommunities.org/id/metropolitan-district-council/wolverhampton","708251","Total Gas & Power Limited","180587511","112.57","Electricity","190534395","29/11/2018","Transportation","Bridges & Subways","R2100"
"Wolverhampton City Council","http://opendatacommunities.org/id/metropolitan-district-council/wolverhampton","708251","Total Gas & Power Limited","180423787","105.41","Electricity","190534402","29/11/2018","Corporate Asset Management","Central Utilities to Recharge","R2100"
"Wolverhampton City Council","http://opendatacommunities.org/id/metropolitan-district-council/wolverhampton","708251","Total Gas & Power Limited","180401480","429.84","Electricity","190534436","29/11/2018","Corporate Asset Management","Central Utilities to Recharge","R2100"
"Wolverhampton City Council","http://opendatacommunities.org/id/metropolitan-district-council/wolverhampton","708251","Total Gas & Power Limited","180402128","448.15","Electricity","190534458","29/11/2018","Corporate Asset Management","Central Utilities to Recharge","R2100"
"Wolverhampton City Council","http://opendatacommunities.org/id/metropolitan-district-council/wolverhampton","708285","Traffix","25813","750.00","Services - Professional Fees","130235585","29/11/2018","Visitor Economy","Bonfire","R4400"
"Wolverhampton City Council","http://opendatacommunities.org/id/metropolitan-district-council/wolverhampton","708301","Treasured Memories Limited","21750","59.05","Materials","130234960","23/11/2018","Bereavement Services","Crematorium","R4007"
"Wolverhampton City Council","http://opendatacommunities.org/id/metropolitan-district-council/wolverhampton","708301","Treasured Memories Limited","21636","118.10","Materials","130232268","23/11/2018","Bereavement Services","Crematorium","R4007"
"Wolverhampton City Council","http://opendatacommunities.org/id/metropolitan-district-council/wolverhampton","708301","Treasured Memories Limited","21678","166.70","Materials","130233389","23/11/2018","Bereavement Services","Crematorium","R4007"
"Wolverhampton City Council","http://opendatacommunities.org/id/metropolitan-district-council/wolverhampton","708301","Treasured Memories Limited","21808","53.50","Materials","130236278","30/11/2018","Bereavement Services","Crematorium","R4007"
"Wolverhampton City Council","http://opendatacommunities.org/id/metropolitan-district-council/wolverhampton","708321","Trinity College London","1-1214226849","560.87","Exam Expenses (Non-Employee)","130232642","07/11/2018","School Planning & Resources","Music Support Team","R4630"
"Wolverhampton City Council","http://opendatacommunities.org/id/metropolitan-district-council/wolverhampton","708323","Trinity High School & Sixth Form Ctr","P19223320181126","600.00","Grant Payments to Individuals","190534104","29/11/2018","Children and young people in care","Pupil Premium","R6402"
"Wolverhampton City Council","http://opendatacommunities.org/id/metropolitan-district-council/wolverhampton","708339","Trowers & Hamlins Llp","2751110","4,855.10","Services - Professional Fees","130233517","07/11/2018","Procurement Services","Corporate Procurement Unit","R4400"
"Wolverhampton City Council","http://opendatacommunities.org/id/metropolitan-district-council/wolverhampton","708339","Trowers & Hamlins Llp","2695163","4,340.50","Services - Professional Fees","130234526","14/11/2018","Procurement Services","Corporate Procurement Unit","R4400"
"Wolverhampton City Council","http://opendatacommunities.org/id/metropolitan-district-council/wolverhampton","708339","Trowers & Hamlins Llp","2695164","1,463.30","Services - Professional Fees","130233515","07/11/2018","Legal Services","Centralised External Legal Costs","R4400"
"Wolverhampton City Council","http://opendatacommunities.org/id/metropolitan-district-council/wolverhampton","708339","Trowers & Hamlins Llp","2769071","585.66","Services - Professional Fees","130233518","07/11/2018","School Planning & Resources","PFI Scheme - Heath Park & St Matthias","R4400"
"Wolverhampton City Council","http://opendatacommunities.org/id/metropolitan-district-council/wolverhampton","708339","Trowers & Hamlins Llp","2746660","16,120.70","Services - Professional Fees","130233516","07/11/2018","City Development","Strategic Disposals","R4400"
"Wolverhampton City Council","http://opendatacommunities.org/id/metropolitan-district-council/wolverhampton","708339","Trowers & Hamlins Llp","2746660","36.00","Services - Professional Fees","130233516","07/11/2018","City Development","Strategic Disposals","R4400"
"Wolverhampton City Council","http://opendatacommunities.org/id/metropolitan-district-council/wolverhampton","708344","Trulife Limited","1247247","119.03","Equipment - Purchase","130234333","14/11/2018","Independent Living Service","Independent Living Service","R4000"
"Wolverhampton City Council","http://opendatacommunities.org/id/metropolitan-district-council/wolverhampton","708344","Trulife Limited","1247247","5.00","Equipment - Purchase","130234333","14/11/2018","Independent Living Service","Independent Living Service","R4000"
"Wolverhampton City Council","http://opendatacommunities.org/id/metropolitan-district-council/wolverhampton","708348","Truvox International Limited","260721","14.51","Equipment - Purchase","130233390","21/11/2018","Adult Education","Service Wide","R4000"
"Wolverhampton City Council","http://opendatacommunities.org/id/metropolitan-district-council/wolverhampton","708348","Truvox International Limited","260721","0.27","Equipment - Purchase","130233390","21/11/2018","Adult Education","Service Wide","R4000"
"Wolverhampton City Council","http://opendatacommunities.org/id/metropolitan-district-council/wolverhampton","708348","Truvox International Limited","260721","23.75","Equipment - Purchase","130233390","21/11/2018","Adult Education","Service Wide","R4000"
"Wolverhampton City Council","http://opendatacommunities.org/id/metropolitan-district-council/wolverhampton","708354","TTS Group Limited","DE5488572","196.20","Equipment - Purchase","130234671","14/11/2018","Schools","Green Park Special School","R4000"
"Wolverhampton City Council","http://opendatacommunities.org/id/metropolitan-district-council/wolverhampton","708354","TTS Group Limited","DE5488558","331.66","Equipment - Purchase","130234669","14/11/2018","Schools","Green Park Special School","R4000"
"Wolverhampton City Council","http://opendatacommunities.org/id/metropolitan-district-council/wolverhampton","708354","TTS Group Limited","DE5488525","357.72","Equipment - Purchase","130234668","14/11/2018","Schools","Green Park Special School","R4000"
"Wolverhampton City Council","http://opendatacommunities.org/id/metropolitan-district-council/wolverhampton","708354","TTS Group Limited","DE5488571","311.04","Equipment - Purchase","130234670","14/11/2018","Schools","Green Park Special School","R4000"
"Wolverhampton City Council","http://opendatacommunities.org/id/metropolitan-district-council/wolverhampton","708354","TTS Group Limited","DE5488571","9.50","Equipment - Purchase","130234670","14/11/2018","Schools","Green Park Special School","R4000"
"Wolverhampton City Council","http://opendatacommunities.org/id/metropolitan-district-council/wolverhampton","708356","Tudor Environmental","237994","397.00","Materials","130235960","30/11/2018","Environmental Maintenance","Ground Maintenance East","R4007"
"Wolverhampton City Council","http://opendatacommunities.org/id/metropolitan-district-council/wolverhampton","708356","Tudor Environmental","237994","3,920.00","Equipment - Purchase","130235960","30/11/2018","Environmental Maintenance","Ground Maintenance East","R4000"
"Wolverhampton City Council","http://opendatacommunities.org/id/metropolitan-district-council/wolverhampton","708356","Tudor Environmental","237996","210.00","Materials","130235961","30/11/2018","Environmental Maintenance","Ground Maintenance East","R4007"
"Wolverhampton City Council","http://opendatacommunities.org/id/metropolitan-district-council/wolverhampton","708358","Tunstall Healthcare (UK) Limited","3IN/10326787","7,200.00","Equipment - Purchase","130234025","30/11/2018","Independent Living Service","Telecare","R4000"
"Wolverhampton City Council","http://opendatacommunities.org/id/metropolitan-district-council/wolverhampton","708358","Tunstall Healthcare (UK) Limited","3IN/10326380","8,160.00","Equipment - Purchase","130233229","21/11/2018","Independent Living Service","Telecare","R4000"
"Wolverhampton City Council","http://opendatacommunities.org/id/metropolitan-district-council/wolverhampton","708361","Turnock Limited","45697","882.00","Materials","130234821","14/11/2018","Street Lighting","Christmas Illuminations","R4007"
"Wolverhampton City Council","http://opendatacommunities.org/id/metropolitan-district-council/wolverhampton","708361","Turnock Limited","45696","880.00","Equipment - Purchase","130234820","16/11/2018","Markets","Bilston Market and Licensed Operations","R4000"
"Wolverhampton City Council","http://opendatacommunities.org/id/metropolitan-district-council/wolverhampton","708361","Turnock Limited","45581","1,710.50","Materials","130232888","07/11/2018","Street Lighting","Christmas Illuminations","R4007"
"Wolverhampton City Council","http://opendatacommunities.org/id/metropolitan-district-council/wolverhampton","708373","Tyco Integrated Fire & Security","TY026781","-1,550.00","Equipment - R & M","130235205","30/11/2018","Operation & Maintenance of Existing Network","UTC Dudley","R4003"
"Wolverhampton City Council","http://opendatacommunities.org/id/metropolitan-district-council/wolverhampton","708373","Tyco Integrated Fire & Security","TL039821","1,550.00","Equipment - R & M","130234027","30/11/2018","Operation & Maintenance of Existing Network","UTC Dudley","R4003"
"Wolverhampton City Council","http://opendatacommunities.org/id/metropolitan-district-council/wolverhampton","708373","Tyco Integrated Fire & Security","TL039820","13,277.13","Equipment - R & M","130234026","30/11/2018","Operation & Maintenance of Existing Network","UTC Wolverhampton","R4003"
"Wolverhampton City Council","http://opendatacommunities.org/id/metropolitan-district-council/wolverhampton","708373","Tyco Integrated Fire & Security","TL039902","1,470.00","Equipment - R & M","130235204","30/11/2018","Operation & Maintenance of Existing Network","UTC Dudley","R4003"
"Wolverhampton City Council","http://opendatacommunities.org/id/metropolitan-district-council/wolverhampton","708374","Tyddyn Hen Limited","204121","220.02","Provisions (Not for resale)","130233762","29/11/2018","School Planning & Resources","Towers Outdoor Education Centre","R4101"
"Wolverhampton City Council","http://opendatacommunities.org/id/metropolitan-district-council/wolverhampton","708402","Ulverscroft Large Print Books Limited","I629454","41.80","Books","130234618","23/11/2018","Local Economy","Global Budgets","R4309"
"Wolverhampton City Council","http://opendatacommunities.org/id/metropolitan-district-council/wolverhampton","708402","Ulverscroft Large Print Books Limited","I629036","39.85","Books","130233230","21/11/2018","Local Economy","Global Budgets","R4309"
"Wolverhampton City Council","http://opendatacommunities.org/id/metropolitan-district-council/wolverhampton","708418","Univar Limited","91624346","-135.00","Materials","130232138","14/11/2018","Leisure Services","Central Baths","R4007"
"Wolverhampton City Council","http://opendatacommunities.org/id/metropolitan-district-council/wolverhampton","708418","Univar Limited","91638681","370.71","Materials","130234184","29/11/2018","Leisure Services","Bert Williams Leisure Centre","R4007"
"Wolverhampton City Council","http://opendatacommunities.org/id/metropolitan-district-council/wolverhampton","708418","Univar Limited","91624245","292.11","Materials","130232137","09/11/2018","Leisure Services","Bert Williams Leisure Centre","R4007"
"Wolverhampton City Council","http://opendatacommunities.org/id/metropolitan-district-council/wolverhampton","708418","Univar Limited","91571276","255.00","Materials","130225007","14/11/2018","Leisure Services","Central Baths","R4007"
"Wolverhampton City Council","http://opendatacommunities.org/id/metropolitan-district-council/wolverhampton","708422","University Of Birmingham","AEBF200/24732","1,480.00","Training Expenses","130233907","29/11/2018","Public Service Reform","Social Work Qualifying Training","R1650"
"Wolverhampton City Council","http://opendatacommunities.org/id/metropolitan-district-council/wolverhampton","708422","University Of Birmingham","AEBF200/24733","1,480.00","Training Expenses","130233519","29/11/2018","Public Service Reform","Social Work Qualifying Training","R1650"
"Wolverhampton City Council","http://opendatacommunities.org/id/metropolitan-district-council/wolverhampton","708435","University Of Wolverhampton","45063015RE-ISSUE","80.00","Room Hire","130230913","14/11/2018","Planning","Planning","R2201"
"Wolverhampton City Council","http://opendatacommunities.org/id/metropolitan-district-council/wolverhampton","708435","University Of Wolverhampton","45063015RE-ISSUE","85.00","Catering","130230913","14/11/2018","Planning","Planning","R4100"
"Wolverhampton City Council","http://opendatacommunities.org/id/metropolitan-district-council/wolverhampton","708435","University Of Wolverhampton","45067299","68.00","Catering","130221396","14/11/2018","Public Service Reform","Workforce Development","R4100"
"Wolverhampton City Council","http://opendatacommunities.org/id/metropolitan-district-council/wolverhampton","708435","University Of Wolverhampton","45064723","17,025.00","Grant Payments","130214171","14/11/2018","Enterprise","AIM for the Black Country non shared costs","R4700"
"Wolverhampton City Council","http://opendatacommunities.org/id/metropolitan-district-council/wolverhampton","708435","University Of Wolverhampton","K012707","125.00","Room Hire","130231187","14/11/2018","Public Service Reform","Centralised Training","R2201"
"Wolverhampton City Council","http://opendatacommunities.org/id/metropolitan-district-council/wolverhampton","708435","University Of Wolverhampton","K012707","61.90","Catering","130231187","14/11/2018","Public Service Reform","Centralised Training","R4100"
"Wolverhampton City Council","http://opendatacommunities.org/id/metropolitan-district-council/wolverhampton","708435","University Of Wolverhampton","45064829","-31,820.29","Grant Payments","130215596","14/11/2018","Enterprise","AIM for the Black Country non shared costs","R4700"
"Wolverhampton City Council","http://opendatacommunities.org/id/metropolitan-district-council/wolverhampton","708435","University Of Wolverhampton","45068699","-195.20","Catering","130227741","14/11/2018","Planning","Planning","R4100"
"Wolverhampton City Council","http://opendatacommunities.org/id/metropolitan-district-council/wolverhampton","708435","University Of Wolverhampton","0614963-008","581.18","Training Expenses","130219275","14/11/2018","Public Service Reform","Workforce Development","R1650"
"Wolverhampton City Council","http://opendatacommunities.org/id/metropolitan-district-council/wolverhampton","708435","University Of Wolverhampton","45065472","68.00","Training Expenses","130219132","14/11/2018","Public Service Reform","Newly Qualified Social Workers","R1650"
"Wolverhampton City Council","http://opendatacommunities.org/id/metropolitan-district-council/wolverhampton","708435","University Of Wolverhampton","45068385 correction","-211,451.71","Services - Professional Fees","130226409","14/11/2018","Enterprise","Growth Factory","R4400"
"Wolverhampton City Council","http://opendatacommunities.org/id/metropolitan-district-council/wolverhampton","708435","University Of Wolverhampton","45065076","17,025.00","Grant Payments","130215275","14/11/2018","Enterprise","AIM for the Black Country non shared costs","R4700"
"Wolverhampton City Council","http://opendatacommunities.org/id/metropolitan-district-council/wolverhampton","708435","University Of Wolverhampton","45066831","-142.24","Marketing \ Non-staff advertising","130219659","14/11/2018","Enterprise","Invest Black Country","R4317"
"Wolverhampton City Council","http://opendatacommunities.org/id/metropolitan-district-council/wolverhampton","708435","University Of Wolverhampton","45068167","68.00","Catering","130226567","14/11/2018","Public Service Reform","Workforce Development","R4100"
"Wolverhampton City Council","http://opendatacommunities.org/id/metropolitan-district-council/wolverhampton","708435","University Of Wolverhampton","45068307","211,451.71","Service Charges","130234675","14/11/2018","Enterprise","Growth Factory","R2205"
"Wolverhampton City Council","http://opendatacommunities.org/id/metropolitan-district-council/wolverhampton","708435","University Of Wolverhampton","45068585","80.00","Room Hire","130226374","14/11/2018","Planning","Planning","R2201"
"Wolverhampton City Council","http://opendatacommunities.org/id/metropolitan-district-council/wolverhampton","708435","University Of Wolverhampton","45068585","115.20","Catering","130226374","14/11/2018","Planning","Planning","R4100"
"Wolverhampton City Council","http://opendatacommunities.org/id/metropolitan-district-council/wolverhampton","708435","University Of Wolverhampton","45068640","-80.00","Room Hire","130226568","14/11/2018","Planning","Planning","R2201"
"Wolverhampton City Council","http://opendatacommunities.org/id/metropolitan-district-council/wolverhampton","708435","University Of Wolverhampton","45068640","-115.20","Catering","130226568","14/11/2018","Planning","Planning","R4100"
"Wolverhampton City Council","http://opendatacommunities.org/id/metropolitan-district-council/wolverhampton","708435","University Of Wolverhampton","45069690","7,912.80","Training Expenses","130230914","14/11/2018","Public Service Reform","Newly Qualified Social Workers","R1650"
"Wolverhampton City Council","http://opendatacommunities.org/id/metropolitan-district-council/wolverhampton","708435","University Of Wolverhampton","45063014RE-ISSUE","80.00","Room Hire","130230912","14/11/2018","Planning","Planning","R2201"
"Wolverhampton City Council","http://opendatacommunities.org/id/metropolitan-district-council/wolverhampton","708435","University Of Wolverhampton","45063014RE-ISSUE","115.20","Catering","130230912","14/11/2018","Planning","Planning","R4100"
"Wolverhampton City Council","http://opendatacommunities.org/id/metropolitan-district-council/wolverhampton","708435","University Of Wolverhampton","45061408","80.00","Room Hire","130209775","14/11/2018","Planning","Planning","R2201"
"Wolverhampton City Council","http://opendatacommunities.org/id/metropolitan-district-council/wolverhampton","708435","University Of Wolverhampton","45061408","115.20","Catering","130209775","14/11/2018","Planning","Planning","R4100"
"Wolverhampton City Council","http://opendatacommunities.org/id/metropolitan-district-council/wolverhampton","708435","University Of Wolverhampton","45065084","-17,025.00","Grant Payments","130218630","14/11/2018","Enterprise","AIM for the Black Country non shared costs","R4700"
"Wolverhampton City Council","http://opendatacommunities.org/id/metropolitan-district-council/wolverhampton","708435","University Of Wolverhampton","45062838","31,820.29","Grant Payments","130207706","14/11/2018","Enterprise","AIM for the Black Country non shared costs","R4700"
"Wolverhampton City Council","http://opendatacommunities.org/id/metropolitan-district-council/wolverhampton","708435","University Of Wolverhampton","45061407","80.00","Room Hire","130210083","14/11/2018","Planning","Planning","R2201"
"Wolverhampton City Council","http://opendatacommunities.org/id/metropolitan-district-council/wolverhampton","708435","University Of Wolverhampton","45061407","115.20","Catering","130210083","14/11/2018","Planning","Planning","R4100"
"Wolverhampton City Council","http://opendatacommunities.org/id/metropolitan-district-council/wolverhampton","708435","University Of Wolverhampton","45066892","-11,960.93","Grant Payments","130220151","14/11/2018","Enterprise","Growth Hub Phase 2 (2015/16)","R4700"
"Wolverhampton City Council","http://opendatacommunities.org/id/metropolitan-district-council/wolverhampton","708435","University Of Wolverhampton","45068698","-195.20","Catering","130227740","14/11/2018","Planning","Planning","R4100"
"Wolverhampton City Council","http://opendatacommunities.org/id/metropolitan-district-council/wolverhampton","708435","University Of Wolverhampton","45068399","2,000.00","Grant Payments","130225611","14/11/2018","Community Safety","VAWG service transformation Fund","R4700"
"Wolverhampton City Council","http://opendatacommunities.org/id/metropolitan-district-council/wolverhampton","708435","University Of Wolverhampton","45068588","23.84","Room Hire","130226375","14/11/2018","Planning","Planning","R2201"
"Wolverhampton City Council","http://opendatacommunities.org/id/metropolitan-district-council/wolverhampton","708435","University Of Wolverhampton","45067371","13,052.50","Training Expenses","130221870","14/11/2018","Skills","IMPACT","R1650"
"Wolverhampton City Council","http://opendatacommunities.org/id/metropolitan-district-council/wolverhampton","708435","University Of Wolverhampton","45066996","2,200.00","Services - Fees and Charges","130220577","14/11/2018","Local Economy","ERDF 2014-19 Bid Development","R4401"
"Wolverhampton City Council","http://opendatacommunities.org/id/metropolitan-district-council/wolverhampton","708435","University Of Wolverhampton","45070737","40,919.47","Services - Professional Fees","130234334","14/11/2018","Headstart","Headstart Phase 3","R4400"
"Wolverhampton City Council","http://opendatacommunities.org/id/metropolitan-district-council/wolverhampton","708435","University Of Wolverhampton","45066891","-279.81","Grant Payments","130220150","14/11/2018","Enterprise","Growth Hub Phase 2 (2015/16)","R4700"
"Wolverhampton City Council","http://opendatacommunities.org/id/metropolitan-district-council/wolverhampton","708436","Univ. Of Wolverhampton (Little Scholars)","45070311","607.50","TPP - Child Care provided for client","130232646","16/11/2018","Adult Education","Discretionary Fund","R5034"
"Wolverhampton City Council","http://opendatacommunities.org/id/metropolitan-district-council/wolverhampton","708448","AECOM Infrastructure & Environment UK Ltd","28367337","309.52","Construction and Conversion","130233908","29/11/2018","-","Integrated Transport","C1100"
"Wolverhampton City Council","http://opendatacommunities.org/id/metropolitan-district-council/wolverhampton","708448","AECOM Infrastructure & Environment UK Ltd","28367126","598.72","Construction and Conversion","130233520","29/11/2018","-","GF - Accessing Growth Fund","C1100"
"Wolverhampton City Council","http://opendatacommunities.org/id/metropolitan-district-council/wolverhampton","708448","AECOM Infrastructure & Environment UK Ltd","28367179","2,833.38","Construction and Conversion","130233765","29/11/2018","-","GF - Accessing Growth Fund","C1100"
"Wolverhampton City Council","http://opendatacommunities.org/id/metropolitan-district-council/wolverhampton","708448","AECOM Infrastructure & Environment UK Ltd","28363759","4,424.36","Services - Professional Fees","130234619","29/11/2018","Black Country Transport","Black Country Transport Director","R4400"
"Wolverhampton City Council","http://opendatacommunities.org/id/metropolitan-district-council/wolverhampton","708448","AECOM Infrastructure & Environment UK Ltd","28364228","8,070.28","Construction and Conversion","130231188","07/11/2018","-","GF - Interchange - Ph2 Train Station/MSCP/Metro Extension","C1100"
"Wolverhampton City Council","http://opendatacommunities.org/id/metropolitan-district-council/wolverhampton","708448","AECOM Infrastructure & Environment UK Ltd","28364233","4,163.26","Construction and Conversion","130231339","07/11/2018","-","GF - Accessing Growth Fund","C1100"
"Wolverhampton City Council","http://opendatacommunities.org/id/metropolitan-district-council/wolverhampton","708448","AECOM Infrastructure & Environment UK Ltd","28364373","484.15","Construction and Conversion","130231496","07/11/2018","-","Integrated Transport","C1100"
"Wolverhampton City Council","http://opendatacommunities.org/id/metropolitan-district-council/wolverhampton","708448","AECOM Infrastructure & Environment UK Ltd","28367468","3,771.60","Services - Professional Fees","130234185","30/11/2018","Black Country Transport","Black Country Transport Director","R4400"
"Wolverhampton City Council","http://opendatacommunities.org/id/metropolitan-district-council/wolverhampton","708448","AECOM Infrastructure & Environment UK Ltd","28364235","716.05","Construction and Conversion","130231340","07/11/2018","-","Integrated Transport","C1100"
"Wolverhampton City Council","http://opendatacommunities.org/id/metropolitan-district-council/wolverhampton","708448","AECOM Infrastructure & Environment UK Ltd","28366057","3,849.04","Construction and Conversion","130233239","21/11/2018","-","Safety Programme","C1100"
"Wolverhampton City Council","http://opendatacommunities.org/id/metropolitan-district-council/wolverhampton","708448","AECOM Infrastructure & Environment UK Ltd","28366052","1,955.83","Construction and Conversion","130233235","21/11/2018","-","GF - Blue Network","C1100"
"Wolverhampton City Council","http://opendatacommunities.org/id/metropolitan-district-council/wolverhampton","708448","AECOM Infrastructure & Environment UK Ltd","28366061","4,192.25","Construction and Conversion","130233241","21/11/2018","-","Safety Programme","C1100"
"Wolverhampton City Council","http://opendatacommunities.org/id/metropolitan-district-council/wolverhampton","708448","AECOM Infrastructure & Environment UK Ltd","28366035","7,818.24","Construction and Conversion","130233232","21/11/2018","-","Transport Structual Maintenance","C1100"
"Wolverhampton City Council","http://opendatacommunities.org/id/metropolitan-district-council/wolverhampton","708448","AECOM Infrastructure & Environment UK Ltd","28366574","569.95","Services - Professional Fees","130233098","21/11/2018","Transportation","Bridges & Subways","R4400"
"Wolverhampton City Council","http://opendatacommunities.org/id/metropolitan-district-council/wolverhampton","708448","AECOM Infrastructure & Environment UK Ltd","28366055","1,650.24","Construction and Conversion","130233237","21/11/2018","-","GF - Accessing Growth Fund","C1100"
"Wolverhampton City Council","http://opendatacommunities.org/id/metropolitan-district-council/wolverhampton","708448","AECOM Infrastructure & Environment UK Ltd","28366032","5,653.28","Construction and Conversion","130233231","21/11/2018","-","Safety Programme","C1100"
"Wolverhampton City Council","http://opendatacommunities.org/id/metropolitan-district-council/wolverhampton","708448","AECOM Infrastructure & Environment UK Ltd","28366138","20,689.92","Services - Professional Fees","130232890","21/11/2018","Black Country Transport","Black Country Transport Director","R4400"
"Wolverhampton City Council","http://opendatacommunities.org/id/metropolitan-district-council/wolverhampton","708448","AECOM Infrastructure & Environment UK Ltd","28366059","1,239.84","Services - Professional Fees","130233240","21/11/2018","City Development","Bilston Public Open Space (ERDF)","R4400"
"Wolverhampton City Council","http://opendatacommunities.org/id/metropolitan-district-council/wolverhampton","708448","AECOM Infrastructure & Environment UK Ltd","28364371","2,035.85","Services - Professional Fees","130231494","21/11/2018","City Development","City Centre Public Realm","R4400"
"Wolverhampton City Council","http://opendatacommunities.org/id/metropolitan-district-council/wolverhampton","708448","AECOM Infrastructure & Environment UK Ltd","28366037","1,771.21","Construction and Conversion","130233233","21/11/2018","-","Safety Programme","C1100"
"Wolverhampton City Council","http://opendatacommunities.org/id/metropolitan-district-council/wolverhampton","708448","AECOM Infrastructure & Environment UK Ltd","28366042","6,012.15","Construction and Conversion","130233234","21/11/2018","-","Safety Programme","C1100"
"Wolverhampton City Council","http://opendatacommunities.org/id/metropolitan-district-council/wolverhampton","708448","AECOM Infrastructure & Environment UK Ltd","28366053","6,583.00","Construction and Conversion","130233236","21/11/2018","-","GF - Accessing Growth Fund","C1100"
"Wolverhampton City Council","http://opendatacommunities.org/id/metropolitan-district-council/wolverhampton","708448","AECOM Infrastructure & Environment UK Ltd","28364232","3,170.04","Construction and Conversion","130231190","07/11/2018","-","GF - Accessing Growth Fund","C1100"
"Wolverhampton City Council","http://opendatacommunities.org/id/metropolitan-district-council/wolverhampton","708448","AECOM Infrastructure & Environment UK Ltd","28364637","309.52","Construction and Conversion","130231761","07/11/2018","-","Integrated Transport","C1100"
"Wolverhampton City Council","http://opendatacommunities.org/id/metropolitan-district-council/wolverhampton","708448","AECOM Infrastructure & Environment UK Ltd","28364375","551.27","Construction and Conversion","130231497","07/11/2018","-","GF - Accessing Growth Fund","C1100"
"Wolverhampton City Council","http://opendatacommunities.org/id/metropolitan-district-council/wolverhampton","708448","AECOM Infrastructure & Environment UK Ltd","28364372","830.06","Construction and Conversion","130231495","07/11/2018","-","Bilston Urban Village","C1100"
"Wolverhampton City Council","http://opendatacommunities.org/id/metropolitan-district-council/wolverhampton","708448","AECOM Infrastructure & Environment UK Ltd","28364413","7,906.26","Services - Professional Fees","130231498","07/11/2018","Black Country Transport","Black Country Transport Director","R4400"
"Wolverhampton City Council","http://opendatacommunities.org/id/metropolitan-district-council/wolverhampton","708448","AECOM Infrastructure & Environment UK Ltd","28365295","3,664.39","Construction and Conversion","130232402","14/11/2018","-","GF - Accessing Growth Fund","C1100"
"Wolverhampton City Council","http://opendatacommunities.org/id/metropolitan-district-council/wolverhampton","708448","AECOM Infrastructure & Environment UK Ltd","28367217","5,237.22","Construction and Conversion","130233766","29/11/2018","-","GF - Accessing Growth Fund","C1100"
"Wolverhampton City Council","http://opendatacommunities.org/id/metropolitan-district-council/wolverhampton","708448","AECOM Infrastructure & Environment UK Ltd","28366576","2,218.14","Construction and Conversion","130233242","29/11/2018","-","GF - Highway Structures (bridges, subways, retaining walls)","C1100"
"Wolverhampton City Council","http://opendatacommunities.org/id/metropolitan-district-council/wolverhampton","708448","AECOM Infrastructure & Environment UK Ltd","28367130","1,801.42","Services - Professional Fees","130233764","29/11/2018","Transportation","Bridges & Subways","R4400"
"Wolverhampton City Council","http://opendatacommunities.org/id/metropolitan-district-council/wolverhampton","708448","AECOM Infrastructure & Environment UK Ltd","28367128","7,906.26","Services - Professional Fees","130233521","29/11/2018","Black Country Transport","Black Country Transport Director","R4400"
"Wolverhampton City Council","http://opendatacommunities.org/id/metropolitan-district-council/wolverhampton","708448","AECOM Infrastructure & Environment UK Ltd","28364764","2,469.61","Construction and Conversion","130231907","09/11/2018","-","GF - Accessing Growth Fund","C1100"
"Wolverhampton City Council","http://opendatacommunities.org/id/metropolitan-district-council/wolverhampton","708448","AECOM Infrastructure & Environment UK Ltd","28361501","1,421.49","Services - Professional Fees","130228482","23/11/2018","Transportation","Bridges & Subways","R4400"
"Wolverhampton City Council","http://opendatacommunities.org/id/metropolitan-district-council/wolverhampton","708467","Valuation Office Agency","25000032842018","308.70","Services - Professional Fees","130232647","02/11/2018","Legal Services","Legal Services","R4400"
"Wolverhampton City Council","http://opendatacommunities.org/id/metropolitan-district-council/wolverhampton","708476","Vehicle Weighing Solutions Limited","INV22287","36.11","Services - Professional Fees","190531847","21/11/2018","Fleet Services","Fleet Management","R4400"
"Wolverhampton City Council","http://opendatacommunities.org/id/metropolitan-district-council/wolverhampton","708476","Vehicle Weighing Solutions Limited","INV22287","80.00","Services - Professional Fees","190531847","21/11/2018","Fleet Services","Fleet Management","R4400"
"Wolverhampton City Council","http://opendatacommunities.org/id/metropolitan-district-council/wolverhampton","708476","Vehicle Weighing Solutions Limited","INV22287","50.00","Services - Professional Fees","190531847","21/11/2018","Fleet Services","Fleet Management","R4400"
"Wolverhampton City Council","http://opendatacommunities.org/id/metropolitan-district-council/wolverhampton","708481","Venue Catering Partner Limited","30865","53.83","Marketing \ Non-staff advertising","130235816","29/11/2018","Corporate Communications","Communications & Marketing - General","R4317"
"Wolverhampton City Council","http://opendatacommunities.org/id/metropolitan-district-council/wolverhampton","708481","Venue Catering Partner Limited","32566","5,162.63","Education trips, Holidays, Outings & Activities","130235819","29/11/2018","Headstart","Headstart - Young People Engagement","R4970"
"Wolverhampton City Council","http://opendatacommunities.org/id/metropolitan-district-council/wolverhampton","708481","Venue Catering Partner Limited","32072","1,370.83","Room Hire","130231499","02/11/2018","Public Service Reform","Workforce Development","R2201"
"Wolverhampton City Council","http://opendatacommunities.org/id/metropolitan-district-council/wolverhampton","708481","Venue Catering Partner Limited","32072","2,879.17","Catering","130231499","02/11/2018","Public Service Reform","Workforce Development","R4100"
"Wolverhampton City Council","http://opendatacommunities.org/id/metropolitan-district-council/wolverhampton","708481","Venue Catering Partner Limited","32072","501.86","Equipment - Hire","130231499","02/11/2018","Public Service Reform","Workforce Development","R4001"
"Wolverhampton City Council","http://opendatacommunities.org/id/metropolitan-district-council/wolverhampton","708481","Venue Catering Partner Limited","32550","2,330.17","Education trips, Holidays, Outings & Activities","130235818","29/11/2018","Headstart","Headstart - Young People Engagement","R4970"
"Wolverhampton City Council","http://opendatacommunities.org/id/metropolitan-district-council/wolverhampton","708481","Venue Catering Partner Limited","31298","65.50","Catering","130235817","29/11/2018","Headstart","Headstart - Young People Engagement","R4100"
"Wolverhampton City Council","http://opendatacommunities.org/id/metropolitan-district-council/wolverhampton","708481","Venue Catering Partner Limited","29592","53.83","Marketing \ Non-staff advertising","130235963","29/11/2018","Corporate Communications","Communications & Marketing - General","R4317"
"Wolverhampton City Council","http://opendatacommunities.org/id/metropolitan-district-council/wolverhampton","708481","Venue Catering Partner Limited","30954","141.96","Marketing \ Non-staff advertising","130235964","29/11/2018","Corporate Communications","Communications & Marketing - General","R4317"
"Wolverhampton City Council","http://opendatacommunities.org/id/metropolitan-district-council/wolverhampton","708481","Venue Catering Partner Limited","32222","537.50","Room Hire","130232139","07/11/2018","Public Service Reform","Centralised Training","R2201"
"Wolverhampton City Council","http://opendatacommunities.org/id/metropolitan-district-council/wolverhampton","708481","Venue Catering Partner Limited","32222","111.67","Catering","130232139","07/11/2018","Public Service Reform","Centralised Training","R4100"
"Wolverhampton City Council","http://opendatacommunities.org/id/metropolitan-district-council/wolverhampton","708481","Venue Catering Partner Limited","32223","537.50","Room Hire","130232140","07/11/2018","Public Service Reform","Centralised Training","R2201"
"Wolverhampton City Council","http://opendatacommunities.org/id/metropolitan-district-council/wolverhampton","708481","Venue Catering Partner Limited","32223","111.67","Catering","130232140","07/11/2018","Public Service Reform","Centralised Training","R4100"
"Wolverhampton City Council","http://opendatacommunities.org/id/metropolitan-district-council/wolverhampton","708483","Veolia ES Landfill Limited","OP/I529120","213.84","TPP - Waste Disposal","130232649","07/11/2018","Environmental Maintenance","Ground Maintenance East","R5003"
"Wolverhampton City Council","http://opendatacommunities.org/id/metropolitan-district-council/wolverhampton","708483","Veolia ES Landfill Limited","OP/I529120","108.24","TPP - Waste Disposal","130232649","07/11/2018","Environmental Maintenance","Direct Schools","R5003"
"Wolverhampton City Council","http://opendatacommunities.org/id/metropolitan-district-council/wolverhampton","708483","Veolia ES Landfill Limited","OP/I529120","79.20","TPP - Waste Disposal","130232649","07/11/2018","Environmental Maintenance","Arbor Scheme","R5003"
"Wolverhampton City Council","http://opendatacommunities.org/id/metropolitan-district-council/wolverhampton","708483","Veolia ES Landfill Limited","OP/I532156","194.00","TPP - Waste Disposal","130232651","07/11/2018","Environmental Maintenance","Ground Maintenance East","R5003"
"Wolverhampton City Council","http://opendatacommunities.org/id/metropolitan-district-council/wolverhampton","708483","Veolia ES Landfill Limited","OP/I532156","130.00","TPP - Waste Disposal","130232651","07/11/2018","Environmental Maintenance","Arbor Scheme","R5003"
"Wolverhampton City Council","http://opendatacommunities.org/id/metropolitan-district-council/wolverhampton","708484","Verifone Services UK&Ireland Limited","7500859549","75.00","Equipment - Purchase","130217712","21/11/2018","Leisure Services","Bert Williams Leisure Centre Caf�","R4000"
"Wolverhampton City Council","http://opendatacommunities.org/id/metropolitan-district-council/wolverhampton","708484","Verifone Services UK&Ireland Limited","7500972665","39.98","R&M - Departmental planned (internal)","130229111","21/11/2018","Adult Education","Foyer Building","R2000"
"Wolverhampton City Council","http://opendatacommunities.org/id/metropolitan-district-council/wolverhampton","708484","Verifone Services UK&Ireland Limited","7500978865","27.24","Equipment - Hire","130232654","09/11/2018","Leisure Services","Bert Williams Leisure Centre Caf�","R4001"
"Wolverhampton City Council","http://opendatacommunities.org/id/metropolitan-district-council/wolverhampton","708484","Verifone Services UK&Ireland Limited","7500985862","39.98","R&M - Departmental planned (internal)","130232656","09/11/2018","Adult Education","Foyer Building","R2000"
"Wolverhampton City Council","http://opendatacommunities.org/id/metropolitan-district-council/wolverhampton","708484","Verifone Services UK&Ireland Limited","7500977529","19.99","Equipment - Purchase","130232653","09/11/2018","Catering","Civic Centre Catering","R4000"
"Wolverhampton City Council","http://opendatacommunities.org/id/metropolitan-district-council/wolverhampton","708500","Virgin Media Limited(Cctv Payments Only)","911806 - 093","93.59","TPP - Rechargeable Works Costs","130184937","30/11/2018","Transportation","Non UTC External Recharges","R5730"
"Wolverhampton City Council","http://opendatacommunities.org/id/metropolitan-district-council/wolverhampton","708500","Virgin Media Limited(Cctv Payments Only)","Blue Bill 17.07.18","491.89","Equipment - Hire","130232064","02/11/2018","Operation & Maintenance of Existing Network","UTC Dudley","R4001"
"Wolverhampton City Council","http://opendatacommunities.org/id/metropolitan-district-council/wolverhampton","708503","Virk Cut Price","REC24/SEP18","32.80","Publications","130232659","16/11/2018","Public Service Reform","Members Expenses","R4310"
"Wolverhampton City Council","http://opendatacommunities.org/id/metropolitan-district-council/wolverhampton","708503","Virk Cut Price","REC22/SEP18","168.10","Publications","130232658","16/11/2018","Public Service Reform","Members Expenses","R4310"
"Wolverhampton City Council","http://opendatacommunities.org/id/metropolitan-district-council/wolverhampton","708503","Virk Cut Price","REC14/SEP18","19.00","Publications","130232657","16/11/2018","Public Service Reform","Members Expenses","R4310"
"Wolverhampton City Council","http://opendatacommunities.org/id/metropolitan-district-council/wolverhampton","708503","Virk Cut Price","REC22/OCT18","186.20","Publications","130233911","29/11/2018","Public Service Reform","Members Expenses","R4310"
"Wolverhampton City Council","http://opendatacommunities.org/id/metropolitan-district-council/wolverhampton","708503","Virk Cut Price","REC24/OCT18","34.90","Publications","130233912","29/11/2018","Public Service Reform","Members Expenses","R4310"
"Wolverhampton City Council","http://opendatacommunities.org/id/metropolitan-district-council/wolverhampton","708503","Virk Cut Price","REC14/OCT18","21.10","Publications","130233910","29/11/2018","Public Service Reform","Members Expenses","R4310"
"Wolverhampton City Council","http://opendatacommunities.org/id/metropolitan-district-council/wolverhampton","708513","Vodafone Corporate Limited","89458982","18,721.31","Comms - Mobile Telephones","130234961","21/11/2018","ICTS","Strategic ICTS (ICT Service Budget)","R4507"
"Wolverhampton City Council","http://opendatacommunities.org/id/metropolitan-district-council/wolverhampton","708542","W.V.Howe Limited","245634","113.50","Equipment - Catering","130235433","23/11/2018","Catering","Education Catering - General Overheads","R4010"
"Wolverhampton City Council","http://opendatacommunities.org/id/metropolitan-district-council/wolverhampton","708542","W.V.Howe Limited","245191","227.08","Equipment - Catering","130234488","14/11/2018","Catering","Education Catering - General Overheads","R4010"
"Wolverhampton City Council","http://opendatacommunities.org/id/metropolitan-district-council/wolverhampton","708544","Wade Building Services Limited","30995","1,350.00","Equipment - Hire","130233769","29/11/2018","Visitor Economy","Bonfire","R4001"
"Wolverhampton City Council","http://opendatacommunities.org/id/metropolitan-district-council/wolverhampton","708544","Wade Building Services Limited","30195","450.00","Equipment - Hire","130232403","16/11/2018","Visitor Economy","Diwali","R4001"
"Wolverhampton City Council","http://opendatacommunities.org/id/metropolitan-district-council/wolverhampton","708556","Walsall Metropolitan Borough Council","694643","12,351.00","Client Transport - SEN","130235740","23/11/2018","Special Educational Needs","Special - Transport","R3043"
"Wolverhampton City Council","http://opendatacommunities.org/id/metropolitan-district-council/wolverhampton","708556","Walsall Metropolitan Borough Council","694644","1,671.41","Client Transport - SEN","130235741","23/11/2018","Special Educational Needs","Special - Transport","R3043"
"Wolverhampton City Council","http://opendatacommunities.org/id/metropolitan-district-council/wolverhampton","708566","Warners Private Hire","58","1,960.00","Client Transport","130236279","30/11/2018","Special Educational Needs","Special - Transport","R3042"
"Wolverhampton City Council","http://opendatacommunities.org/id/metropolitan-district-council/wolverhampton","708580","Waterstones Booksellers Limited","3081203507","57.64","Books","130235596","23/11/2018","Adult Education","24+ Advanced Learning Loan","R4309"
"Wolverhampton City Council","http://opendatacommunities.org/id/metropolitan-district-council/wolverhampton","708580","Waterstones Booksellers Limited","3081203738","558.80","Books","130235597","23/11/2018","Adult Education","Education & Training","R4309"
"Wolverhampton City Council","http://opendatacommunities.org/id/metropolitan-district-council/wolverhampton","708581","Wates Construction Limited","112987","320,128.00","Construction and Conversion","130235209","21/11/2018","-","Roof Refurbishment Programme","C1100"
"Wolverhampton City Council","http://opendatacommunities.org/id/metropolitan-district-council/wolverhampton","708581","Wates Construction Limited","112982","246,512.00","Construction and Conversion","130235434","21/11/2018","-","Decent Homes - Stock Improvements","C1100"
"Wolverhampton City Council","http://opendatacommunities.org/id/metropolitan-district-council/wolverhampton","708581","Wates Construction Limited","112986","25,741.00","Construction and Conversion","130235208","21/11/2018","-","Roof Refurbishment Programme","C1100"
"Wolverhampton City Council","http://opendatacommunities.org/id/metropolitan-district-council/wolverhampton","708584","Watts Urethane Products Limited","129231","4,610.00","Materials","130233522","29/11/2018","Highways Maintenance","Fencing & Guard Rails","R4007"
"Wolverhampton City Council","http://opendatacommunities.org/id/metropolitan-district-council/wolverhampton","708588","WBP Visual Solutions Limited","110814","467.95","Equipment - Purchase","130233243","21/11/2018","Visitor Economy","Contemporary Gallery - NPO ACE WAG","R4000"
"Wolverhampton City Council","http://opendatacommunities.org/id/metropolitan-district-council/wolverhampton","708588","WBP Visual Solutions Limited","110810","902.10","Services - Professional Fees","130231763","07/11/2018","Visitor Economy","BP Portrait Prize 2018 -  ACE NPO WAG","R4400"
"Wolverhampton City Council","http://opendatacommunities.org/id/metropolitan-district-council/wolverhampton","708601","Webgibb Welding Limited","C6886","72.30","R&M - Departmental planned (external)","130234335","29/11/2018","Bereavement Services","Cemeteries","R2001"
"Wolverhampton City Council","http://opendatacommunities.org/id/metropolitan-district-council/wolverhampton","708608","Wednesfield High S E A","P19223320181126","600.00","Grant Payments to Individuals","190534104","29/11/2018","Children and young people in care","Pupil Premium","R6402"
"Wolverhampton City Council","http://opendatacommunities.org/id/metropolitan-district-council/wolverhampton","708616","Weightmans Llp","01781415","1,279.80","Services - Professional Fees","130233770","07/11/2018","Waste and Recycling Service","Waste Disposal - General","R4400"
"Wolverhampton City Council","http://opendatacommunities.org/id/metropolitan-district-council/wolverhampton","708649","West Midlands Employers","WOL_012789","220.00","Staff Advertising Costs","130234490","29/11/2018","The Hub","Central Advertising","R1700"
"Wolverhampton City Council","http://opendatacommunities.org/id/metropolitan-district-council/wolverhampton","708649","West Midlands Employers","WOL_012724","220.00","Staff Advertising Costs","130234825","29/11/2018","The Hub","Central Advertising","R1700"
"Wolverhampton City Council","http://opendatacommunities.org/id/metropolitan-district-council/wolverhampton","708649","West Midlands Employers","WOL_012570","220.00","Staff Advertising Costs","130232891","02/11/2018","The Hub","Central Advertising","R1700"
"Wolverhampton City Council","http://opendatacommunities.org/id/metropolitan-district-council/wolverhampton","708649","West Midlands Employers","WOL_012703","220.00","Staff Advertising Costs","130234824","29/11/2018","The Hub","Central Advertising","R1700"
"Wolverhampton City Council","http://opendatacommunities.org/id/metropolitan-district-council/wolverhampton","708649","West Midlands Employers","WOL_012770","440.00","Staff Advertising Costs","130234489","29/11/2018","The Hub","Central Advertising","R1700"
"Wolverhampton City Council","http://opendatacommunities.org/id/metropolitan-district-council/wolverhampton","708650","West Midlands Fire Service","600039039","13,615.20","TPP - Social Care Support Services","130232270","14/11/2018","Independent Living Service","Telecare","R5501"
"Wolverhampton City Council","http://opendatacommunities.org/id/metropolitan-district-council/wolverhampton","708650","West Midlands Fire Service","600039113","12,722.40","TPP - Social Care Support Services","130234186","30/11/2018","Independent Living Service","Telecare","R5501"
"Wolverhampton City Council","http://opendatacommunities.org/id/metropolitan-district-council/wolverhampton","708656","West Midlands Travel Limited","XASI/00111077","504.00","Public Transport","130234187","29/11/2018","Special Educational Needs","Secondary- Transport","R3300"
"Wolverhampton City Council","http://opendatacommunities.org/id/metropolitan-district-council/wolverhampton","708656","West Midlands Travel Limited","XASI/00111233","144.00","Public Transport","130234491","29/11/2018","Special Educational Needs","Secondary- Transport","R3300"
"Wolverhampton City Council","http://opendatacommunities.org/id/metropolitan-district-council/wolverhampton","708656","West Midlands Travel Limited","XASI/00110967","35,838.00","Public Transport","130235210","29/11/2018","Special Educational Needs","Secondary- Transport","R3300"
"Wolverhampton City Council","http://opendatacommunities.org/id/metropolitan-district-council/wolverhampton","708656","West Midlands Travel Limited","SLIN/00041273","3,440.00","Public Transport","130233523","29/11/2018","Adult Education","24+ Advanced Learning Loan","R3300"
"Wolverhampton City Council","http://opendatacommunities.org/id/metropolitan-district-council/wolverhampton","708656","West Midlands Travel Limited","SLIN/00041273","26.80","Comms - Postage","130233523","29/11/2018","Adult Education","24+ Advanced Learning Loan","R4503"
"Wolverhampton City Council","http://opendatacommunities.org/id/metropolitan-district-council/wolverhampton","708656","West Midlands Travel Limited","SLCN/00001552","-2,760.00","Public Transport","130229862","02/11/2018","Adult Education","Discretionary Fund","R3300"
"Wolverhampton City Council","http://opendatacommunities.org/id/metropolitan-district-council/wolverhampton","708656","West Midlands Travel Limited","SLCN/00001552","-13.40","Comms - Postage","130229862","02/11/2018","Adult Education","Discretionary Fund","R4503"
"Wolverhampton City Council","http://opendatacommunities.org/id/metropolitan-district-council/wolverhampton","708656","West Midlands Travel Limited","XASI/00110747","598.25","Public Transport","130232271","14/11/2018","Special Educational Needs","Secondary- Transport","R3300"
"Wolverhampton City Council","http://opendatacommunities.org/id/metropolitan-district-council/wolverhampton","708656","West Midlands Travel Limited","SLIN/0041161","1,720.00","Public Transport","130232142","09/11/2018","Adult Education","Discretionary Fund","R3300"
"Wolverhampton City Council","http://opendatacommunities.org/id/metropolitan-district-council/wolverhampton","708656","West Midlands Travel Limited","SLIN/0041161","13.40","Comms - Postage","130232142","09/11/2018","Adult Education","Discretionary Fund","R4503"
"Wolverhampton City Council","http://opendatacommunities.org/id/metropolitan-district-council/wolverhampton","708656","West Midlands Travel Limited","XASI/00110891","432.00","Public Transport","130232892","21/11/2018","Special Educational Needs","Secondary- Transport","R3300"
"Wolverhampton City Council","http://opendatacommunities.org/id/metropolitan-district-council/wolverhampton","708656","West Midlands Travel Limited","SLIN/00040574","436.90","Client Transport","130232304","02/11/2018","Skills","IMPACT","R3042"
"Wolverhampton City Council","http://opendatacommunities.org/id/metropolitan-district-council/wolverhampton","708656","West Midlands Travel Limited","SLIN/00040713","436.90","Client Transport","130232303","02/11/2018","Skills","IMPACT","R3042"
"Wolverhampton City Council","http://opendatacommunities.org/id/metropolitan-district-council/wolverhampton","708656","West Midlands Travel Limited","XASI/00110553","2,288.25","Public Transport","130231503","02/11/2018","Special Educational Needs","Secondary- Transport","R3300"
"Wolverhampton City Council","http://opendatacommunities.org/id/metropolitan-district-council/wolverhampton","708656","West Midlands Travel Limited","XASI/00110413","516.50","Public Transport","130230683","02/11/2018","Special Educational Needs","Secondary- Transport","R3300"
"Wolverhampton City Council","http://opendatacommunities.org/id/metropolitan-district-council/wolverhampton","708676","Whaleys (Bradford) Limited","I280105","155.00","Materials for resale","130232143","07/11/2018","Adult Education","Continuing Education","R4008"
"Wolverhampton City Council","http://opendatacommunities.org/id/metropolitan-district-council/wolverhampton","708676","Whaleys (Bradford) Limited","I280105","16.80","Materials for resale","130232143","07/11/2018","Adult Education","Continuing Education","R4008"
"Wolverhampton City Council","http://opendatacommunities.org/id/metropolitan-district-council/wolverhampton","708677","WHampton Homes Limited-Property Service","2600027105","4,088.29","Construction and Conversion","130231765","07/11/2018","-","Adaptations for People with Disabilites","C1100"
"Wolverhampton City Council","http://opendatacommunities.org/id/metropolitan-district-council/wolverhampton","708700","Wildlife Trust For B�Ham & Black Cty","987","1,020.00","Grant Payments","130232893","21/11/2018","City Development","Blue Network (ERDF)","R4700"
"Wolverhampton City Council","http://opendatacommunities.org/id/metropolitan-district-council/wolverhampton","708701","Wildside Activity Centre","18/2212","117.50","Training Expenses","130233244","23/11/2018","Audit Services","Health & Safety","R1650"
"Wolverhampton City Council","http://opendatacommunities.org/id/metropolitan-district-council/wolverhampton","708701","Wildside Activity Centre","18/2212","98.50","Training Expenses","130233244","23/11/2018","Audit Services","Health & Safety","R1650"
"Wolverhampton City Council","http://opendatacommunities.org/id/metropolitan-district-council/wolverhampton","708705","Willenhall Engine Centre","66300","820.18","Services - Professional Fees","190525592","09/11/2018","Fleet Services","Fleet Management","R4400"
"Wolverhampton City Council","http://opendatacommunities.org/id/metropolitan-district-council/wolverhampton","708707","William Gough & Sons Limited","20801","14,594.48","R&M - Departmental planned (external)","130232660","21/11/2018","Adult Education","Central Costs","R2001"
"Wolverhampton City Council","http://opendatacommunities.org/id/metropolitan-district-council/wolverhampton","708708","William Gough Limited","85522","968.53","R&M - Departmental planned (external)","130232663","07/11/2018","Maintenance Programme","Centralised R&M","R2001"
"Wolverhampton City Council","http://opendatacommunities.org/id/metropolitan-district-council/wolverhampton","708708","William Gough Limited","85617","33.97","R&M - Departmental planned (external)","130233540","29/11/2018","Maintenance Programme","Centralised R&M","R2001"
"Wolverhampton City Council","http://opendatacommunities.org/id/metropolitan-district-council/wolverhampton","708708","William Gough Limited","85619","75.92","R&M - Departmental planned (external)","130233542","29/11/2018","Maintenance Programme","Centralised R&M","R2001"
"Wolverhampton City Council","http://opendatacommunities.org/id/metropolitan-district-council/wolverhampton","708708","William Gough Limited","85606","119.75","R&M - Departmental planned (external)","130233530","29/11/2018","Maintenance Programme","Centralised R&M","R2001"
"Wolverhampton City Council","http://opendatacommunities.org/id/metropolitan-district-council/wolverhampton","708708","William Gough Limited","85632","40.00","R&M - Departmental planned (external)","130233773","29/11/2018","Maintenance Programme","Centralised R&M","R2001"
"Wolverhampton City Council","http://opendatacommunities.org/id/metropolitan-district-council/wolverhampton","708708","William Gough Limited","85641","60.67","R&M - Departmental planned (external)","130233782","29/11/2018","Maintenance Programme","Centralised R&M","R2001"
"Wolverhampton City Council","http://opendatacommunities.org/id/metropolitan-district-council/wolverhampton","708708","William Gough Limited","85593","40.00","R&M - Departmental planned (external)","130233404","29/11/2018","Maintenance Programme","Centralised R&M","R2001"
"Wolverhampton City Council","http://opendatacommunities.org/id/metropolitan-district-council/wolverhampton","708708","William Gough Limited","85612","235.70","R&M - Departmental planned (external)","130233535","29/11/2018","Maintenance Programme","Centralised R&M","R2001"
"Wolverhampton City Council","http://opendatacommunities.org/id/metropolitan-district-council/wolverhampton","708708","William Gough Limited","85595","40.00","R&M - Departmental planned (external)","130233406","29/11/2018","Maintenance Programme","Centralised R&M","R2001"
"Wolverhampton City Council","http://opendatacommunities.org/id/metropolitan-district-council/wolverhampton","708708","William Gough Limited","85614","106.41","R&M - Departmental planned (external)","130233537","29/11/2018","Maintenance Programme","Centralised R&M","R2001"
"Wolverhampton City Council","http://opendatacommunities.org/id/metropolitan-district-council/wolverhampton","708708","William Gough Limited","85616","40.00","R&M - Departmental planned (external)","130233539","29/11/2018","Maintenance Programme","Centralised R&M","R2001"
"Wolverhampton City Council","http://opendatacommunities.org/id/metropolitan-district-council/wolverhampton","708708","William Gough Limited","85636","55.34","R&M - Departmental planned (external)","130233777","29/11/2018","Maintenance Programme","Centralised R&M","R2001"
"Wolverhampton City Council","http://opendatacommunities.org/id/metropolitan-district-council/wolverhampton","708708","William Gough Limited","85589","252.41","R&M - Departmental planned (external)","130233401","29/11/2018","Maintenance Programme","Centralised R&M","R2001"
"Wolverhampton City Council","http://opendatacommunities.org/id/metropolitan-district-council/wolverhampton","708708","William Gough Limited","85640","40.00","R&M - Departmental planned (external)","130233781","29/11/2018","Maintenance Programme","Centralised R&M","R2001"
"Wolverhampton City Council","http://opendatacommunities.org/id/metropolitan-district-council/wolverhampton","708708","William Gough Limited","85642","86.49","R&M - Departmental planned (external)","130233783","29/11/2018","Safeguarding","Court of Protection, Funerals and Protection of Property","R2001"
"Wolverhampton City Council","http://opendatacommunities.org/id/metropolitan-district-council/wolverhampton","708708","William Gough Limited","85610","164.07","R&M - Departmental planned (external)","130233533","29/11/2018","Maintenance Programme","Centralised R&M","R2001"
"Wolverhampton City Council","http://opendatacommunities.org/id/metropolitan-district-council/wolverhampton","708708","William Gough Limited","85634","153.10","R&M - Departmental planned (external)","130233775","29/11/2018","Maintenance Programme","Centralised R&M","R2001"
"Wolverhampton City Council","http://opendatacommunities.org/id/metropolitan-district-council/wolverhampton","708708","William Gough Limited","85623","1,319.31","R&M - Departmental planned (external)","130233545","29/11/2018","Maintenance Programme","Centralised R&M","R2001"
"Wolverhampton City Council","http://opendatacommunities.org/id/metropolitan-district-council/wolverhampton","708708","William Gough Limited","85633","40.00","R&M - Departmental planned (external)","130233774","29/11/2018","Maintenance Programme","Centralised R&M","R2001"
"Wolverhampton City Council","http://opendatacommunities.org/id/metropolitan-district-council/wolverhampton","708708","William Gough Limited","85638","92.44","R&M - Departmental planned (external)","130233779","29/11/2018","Maintenance Programme","Centralised R&M","R2001"
"Wolverhampton City Council","http://opendatacommunities.org/id/metropolitan-district-council/wolverhampton","708708","William Gough Limited","85648","205.37","R&M - Departmental planned (external)","130233785","29/11/2018","Maintenance Programme","Centralised R&M","R2001"
"Wolverhampton City Council","http://opendatacommunities.org/id/metropolitan-district-council/wolverhampton","708708","William Gough Limited","85588","184.71","R&M - Departmental planned (external)","130233400","29/11/2018","Maintenance Programme","Centralised R&M","R2001"
"Wolverhampton City Council","http://opendatacommunities.org/id/metropolitan-district-council/wolverhampton","708708","William Gough Limited","85560","182.82","R&M - Departmental planned (external)","130232904","21/11/2018","Maintenance Programme","Centralised R&M","R2001"
"Wolverhampton City Council","http://opendatacommunities.org/id/metropolitan-district-council/wolverhampton","708708","William Gough Limited","85552","158.99","R&M - Departmental planned (external)","130232900","21/11/2018","Maintenance Programme","Centralised R&M","R2001"
"Wolverhampton City Council","http://opendatacommunities.org/id/metropolitan-district-council/wolverhampton","708708","William Gough Limited","85551","206.39","R&M - Departmental planned (external)","130232899","21/11/2018","Maintenance Programme","Centralised R&M","R2001"
"Wolverhampton City Council","http://opendatacommunities.org/id/metropolitan-district-council/wolverhampton","708708","William Gough Limited","85556","55.34","R&M - Departmental planned (external)","130232901","21/11/2018","Maintenance Programme","Centralised R&M","R2001"
"Wolverhampton City Council","http://opendatacommunities.org/id/metropolitan-district-council/wolverhampton","708708","William Gough Limited","85559","53.29","R&M - Departmental planned (external)","130232903","21/11/2018","Maintenance Programme","Centralised R&M","R2001"
"Wolverhampton City Council","http://opendatacommunities.org/id/metropolitan-district-council/wolverhampton","708708","William Gough Limited","85550","40.00","R&M - Departmental planned (external)","130232898","21/11/2018","Maintenance Programme","Centralised R&M","R2001"
"Wolverhampton City Council","http://opendatacommunities.org/id/metropolitan-district-council/wolverhampton","708708","William Gough Limited","85561","553.49","R&M - Departmental planned (external)","130232905","21/11/2018","Facilities Management","Caretakers Community Centre","R2001"
"Wolverhampton City Council","http://opendatacommunities.org/id/metropolitan-district-council/wolverhampton","708708","William Gough Limited","84283","93.41","R&M - Departmental planned (external)","130235211","21/11/2018","Adult Education","Old Hall Street Main","R2001"
"Wolverhampton City Council","http://opendatacommunities.org/id/metropolitan-district-council/wolverhampton","708708","William Gough Limited","85427","40.00","R&M - Departmental planned (external)","130235321","21/11/2018","Adult Education","Old Hall Street Main","R2001"
"Wolverhampton City Council","http://opendatacommunities.org/id/metropolitan-district-council/wolverhampton","708708","William Gough Limited","85215","40.00","R&M - Departmental planned (external)","130235214","21/11/2018","Adult Education","Alan Garner Centre Building","R2001"
"Wolverhampton City Council","http://opendatacommunities.org/id/metropolitan-district-council/wolverhampton","708708","William Gough Limited","84755","151.03","R&M - Departmental planned (external)","130235213","21/11/2018","Adult Education","Foyer Building","R2001"
"Wolverhampton City Council","http://opendatacommunities.org/id/metropolitan-district-council/wolverhampton","708708","William Gough Limited","84737","108.57","R&M - Departmental planned (external)","130235212","21/11/2018","Adult Education","Foyer Building","R2001"
"Wolverhampton City Council","http://opendatacommunities.org/id/metropolitan-district-council/wolverhampton","708708","William Gough Limited","85558","153.10","R&M - Departmental planned (external)","130232902","21/11/2018","Maintenance Programme","Centralised R&M","R2001"
"Wolverhampton City Council","http://opendatacommunities.org/id/metropolitan-district-council/wolverhampton","708708","William Gough Limited","85170","7,987.76","R&M - Departmental planned (external)","130226872","21/11/2018","Maintenance Programme","Centralised R&M","R2001"
"Wolverhampton City Council","http://opendatacommunities.org/id/metropolitan-district-council/wolverhampton","708708","William Gough Limited","85548","444.67","R&M - Departmental planned (external)","130232896","21/11/2018","Maintenance Programme","Centralised R&M","R2001"
"Wolverhampton City Council","http://opendatacommunities.org/id/metropolitan-district-council/wolverhampton","708708","William Gough Limited","85544","145.87","R&M - Departmental planned (external)","130232894","21/11/2018","Facilities Management","Parkfields Office Accomodation","R2001"
"Wolverhampton City Council","http://opendatacommunities.org/id/metropolitan-district-council/wolverhampton","708708","William Gough Limited","85104","1,157.59","R&M - Departmental planned (external)","130224464","21/11/2018","Facilities Management","Culwell Street Depot","R2001"
"Wolverhampton City Council","http://opendatacommunities.org/id/metropolitan-district-council/wolverhampton","708708","William Gough Limited","85568","915.45","Construction and Conversion","130233393","23/11/2018","-","Capital Maintenance - Roof / Ceilings Replacements","C1100"
"Wolverhampton City Council","http://opendatacommunities.org/id/metropolitan-district-council/wolverhampton","708708","William Gough Limited","85579","13,500.00","Construction and Conversion","130233397","23/11/2018","-","Corporate Asset Management","C1100"
"Wolverhampton City Council","http://opendatacommunities.org/id/metropolitan-district-council/wolverhampton","708708","William Gough Limited","85573","11,639.18","R&M - Departmental planned (external)","130233395","23/11/2018","Corporate Asset Management","Centralised Planned Maintenance","R2001"
"Wolverhampton City Council","http://opendatacommunities.org/id/metropolitan-district-council/wolverhampton","708708","William Gough Limited","85576","1,874.60","R&M - Departmental planned (external)","130233525","23/11/2018","Maintenance Programme","Centralised R&M","R2001"
"Wolverhampton City Council","http://opendatacommunities.org/id/metropolitan-district-council/wolverhampton","708708","William Gough Limited","85270","13,000.00","R&M - Departmental planned (external)","130227459","23/11/2018","Facilities Management","Culwell Street Depot","R2001"
"Wolverhampton City Council","http://opendatacommunities.org/id/metropolitan-district-council/wolverhampton","708708","William Gough Limited","85586","50.13","R&M - Departmental planned (external)","130233398","29/11/2018","Maintenance Programme","Centralised R&M","R2001"
"Wolverhampton City Council","http://opendatacommunities.org/id/metropolitan-district-council/wolverhampton","708708","William Gough Limited","85598","40.00","R&M - Departmental planned (external)","130233408","29/11/2018","Maintenance Programme","Centralised R&M","R2001"
"Wolverhampton City Council","http://opendatacommunities.org/id/metropolitan-district-council/wolverhampton","708708","William Gough Limited","85621","82.56","R&M - Departmental planned (external)","130233544","29/11/2018","Maintenance Programme","Centralised R&M","R2001"
"Wolverhampton City Council","http://opendatacommunities.org/id/metropolitan-district-council/wolverhampton","708708","William Gough Limited","85205","2,935.87","R&M - Departmental planned (external)","130233524","29/11/2018","Bereavement Services","Cemeteries","R2001"
"Wolverhampton City Council","http://opendatacommunities.org/id/metropolitan-district-council/wolverhampton","708708","William Gough Limited","85587","53.98","R&M - Departmental planned (external)","130233399","29/11/2018","Maintenance Programme","Centralised R&M","R2001"
"Wolverhampton City Council","http://opendatacommunities.org/id/metropolitan-district-council/wolverhampton","708708","William Gough Limited","85657","10,751.42","Construction and Conversion","130234343","30/11/2018","-","Corporate Asset Management","C1100"
"Wolverhampton City Council","http://opendatacommunities.org/id/metropolitan-district-council/wolverhampton","708708","William Gough Limited","84722","67.54","R&M - Departmental planned (external)","130234492","14/11/2018","Maintenance Programme","Centralised R&M","R2001"
"Wolverhampton City Council","http://opendatacommunities.org/id/metropolitan-district-council/wolverhampton","708708","William Gough Limited","85478","37,000.00","Construction and Conversion","130230692","14/11/2018","-","Capital Maintenance - Roof / Ceilings Replacements","C1100"
"Wolverhampton City Council","http://opendatacommunities.org/id/metropolitan-district-council/wolverhampton","708708","William Gough Limited","85375","454.93","R&M - Departmental planned (external)","130228487","14/11/2018","Maintenance Programme","Centralised R&M","R2001"
"Wolverhampton City Council","http://opendatacommunities.org/id/metropolitan-district-council/wolverhampton","708708","William Gough Limited","85594","114.15","R&M - Departmental planned (external)","130233405","29/11/2018","Maintenance Programme","Centralised R&M","R2001"
"Wolverhampton City Council","http://opendatacommunities.org/id/metropolitan-district-council/wolverhampton","708708","William Gough Limited","85601","42.46","R&M - Departmental planned (external)","130233409","29/11/2018","Maintenance Programme","Centralised R&M","R2001"
"Wolverhampton City Council","http://opendatacommunities.org/id/metropolitan-district-council/wolverhampton","708708","William Gough Limited","85596","40.00","R&M - Departmental planned (external)","130233407","29/11/2018","Facilities Management","Hickman Avenue Depot","R2001"
"Wolverhampton City Council","http://opendatacommunities.org/id/metropolitan-district-council/wolverhampton","708708","William Gough Limited","85604","171.57","R&M - Departmental planned (external)","130233528","29/11/2018","Maintenance Programme","Centralised R&M","R2001"
"Wolverhampton City Council","http://opendatacommunities.org/id/metropolitan-district-council/wolverhampton","708708","William Gough Limited","85626","920.30","Construction and Conversion","130233548","29/11/2018","-","GF - Cricket provision","C1100"
"Wolverhampton City Council","http://opendatacommunities.org/id/metropolitan-district-council/wolverhampton","708708","William Gough Limited","85624","40.00","R&M - Departmental planned (external)","130233546","29/11/2018","Maintenance Programme","Centralised R&M","R2001"
"Wolverhampton City Council","http://opendatacommunities.org/id/metropolitan-district-council/wolverhampton","708708","William Gough Limited","85635","207.00","R&M - Departmental planned (external)","130233776","29/11/2018","Markets","Bilston Market and Licensed Operations","R2001"
"Wolverhampton City Council","http://opendatacommunities.org/id/metropolitan-district-council/wolverhampton","708708","William Gough Limited","85649","457.14","R&M - Departmental planned (external)","130233786","29/11/2018","Maintenance Programme","Centralised R&M","R2001"
"Wolverhampton City Council","http://opendatacommunities.org/id/metropolitan-district-council/wolverhampton","708708","William Gough Limited","85639","13,040.27","R&M - Departmental planned (external)","130233780","29/11/2018","Maintenance Programme","Centralised R&M","R2001"
"Wolverhampton City Council","http://opendatacommunities.org/id/metropolitan-district-council/wolverhampton","708708","William Gough Limited","85620","40.98","R&M - Departmental planned (external)","130233543","29/11/2018","Maintenance Programme","Centralised R&M","R2001"
"Wolverhampton City Council","http://opendatacommunities.org/id/metropolitan-district-council/wolverhampton","708708","William Gough Limited","85625","145.14","R&M - Departmental planned (external)","130233547","29/11/2018","Maintenance Programme","Centralised R&M","R2001"
"Wolverhampton City Council","http://opendatacommunities.org/id/metropolitan-district-council/wolverhampton","708708","William Gough Limited","85631","40.00","R&M - Departmental planned (external)","130233772","29/11/2018","Maintenance Programme","Centralised R&M","R2001"
"Wolverhampton City Council","http://opendatacommunities.org/id/metropolitan-district-council/wolverhampton","708708","William Gough Limited","85628","39.92","R&M - Departmental planned (external)","130233771","29/11/2018","Maintenance Programme","Centralised R&M","R2001"
"Wolverhampton City Council","http://opendatacommunities.org/id/metropolitan-district-council/wolverhampton","708708","William Gough Limited","85591","113.36","R&M - Departmental planned (external)","130233402","29/11/2018","Facilities Management","Caretakers Community Centre","R2001"
"Wolverhampton City Council","http://opendatacommunities.org/id/metropolitan-district-council/wolverhampton","708708","William Gough Limited","85637","193.50","R&M - Departmental planned (external)","130233778","29/11/2018","Maintenance Programme","Centralised R&M","R2001"
"Wolverhampton City Council","http://opendatacommunities.org/id/metropolitan-district-council/wolverhampton","708708","William Gough Limited","85388","1,522.64","Construction and Conversion","130231602","29/11/2018","-","GF - Cricket provision","C1100"
"Wolverhampton City Council","http://opendatacommunities.org/id/metropolitan-district-council/wolverhampton","708708","William Gough Limited","85630","583.04","R&M - Departmental planned (external)","130234341","29/11/2018","Maintenance Programme","Centralised R&M","R2001"
"Wolverhampton City Council","http://opendatacommunities.org/id/metropolitan-district-council/wolverhampton","708708","William Gough Limited","85611","26.61","R&M - Departmental planned (external)","130233534","29/11/2018","Maintenance Programme","Centralised R&M","R2001"
"Wolverhampton City Council","http://opendatacommunities.org/id/metropolitan-district-council/wolverhampton","708708","William Gough Limited","85615","186.58","R&M - Departmental planned (external)","130233538","29/11/2018","Maintenance Programme","Centralised R&M","R2001"
"Wolverhampton City Council","http://opendatacommunities.org/id/metropolitan-district-council/wolverhampton","708708","William Gough Limited","85608","40.00","R&M - Departmental planned (external)","130233532","29/11/2018","Maintenance Programme","Centralised R&M","R2001"
"Wolverhampton City Council","http://opendatacommunities.org/id/metropolitan-district-council/wolverhampton","708708","William Gough Limited","85613","47.15","R&M - Departmental planned (external)","130233536","29/11/2018","Maintenance Programme","Centralised R&M","R2001"
"Wolverhampton City Council","http://opendatacommunities.org/id/metropolitan-district-council/wolverhampton","708708","William Gough Limited","85607","40.00","R&M - Departmental planned (external)","130233531","29/11/2018","Maintenance Programme","Centralised R&M","R2001"
"Wolverhampton City Council","http://opendatacommunities.org/id/metropolitan-district-council/wolverhampton","708708","William Gough Limited","85605","92.64","R&M - Departmental planned (external)","130233529","29/11/2018","Maintenance Programme","Centralised R&M","R2001"
"Wolverhampton City Council","http://opendatacommunities.org/id/metropolitan-district-council/wolverhampton","708708","William Gough Limited","84762","47.62","R&M - Departmental planned (external)","130234337","09/11/2018","Safeguarding","Court of Protection, Funerals and Protection of Property","R2001"
"Wolverhampton City Council","http://opendatacommunities.org/id/metropolitan-district-council/wolverhampton","708708","William Gough Limited","85650","5,676.93","R&M - Departmental planned (external)","130234342","30/11/2018","Maintenance Programme","Centralised R&M","R2001"
"Wolverhampton City Council","http://opendatacommunities.org/id/metropolitan-district-council/wolverhampton","708708","William Gough Limited","85581","18,198.67","R&M - Departmental planned (external)","130234340","23/11/2018","Maintenance Programme","Centralised R&M","R2001"
"Wolverhampton City Council","http://opendatacommunities.org/id/metropolitan-district-council/wolverhampton","708708","William Gough Limited","85260","36,260.90","Construction and Conversion","130227092","23/11/2018","-","Capital Maintenance - Roof / Ceilings Replacements","C1100"
"Wolverhampton City Council","http://opendatacommunities.org/id/metropolitan-district-council/wolverhampton","708708","William Gough Limited","85569","7,606.65","Construction and Conversion","130233394","23/11/2018","-","Corporate Asset Management","C1100"
"Wolverhampton City Council","http://opendatacommunities.org/id/metropolitan-district-council/wolverhampton","708708","William Gough Limited","84834","58.66","R&M - Departmental planned (external)","130220985","14/11/2018","Maintenance Programme","Centralised R&M","R2001"
"Wolverhampton City Council","http://opendatacommunities.org/id/metropolitan-district-council/wolverhampton","708708","William Gough Limited","85536","8,083.09","R&M - Departmental planned (external)","130232666","14/11/2018","Maintenance Programme","Centralised R&M","R2001"
"Wolverhampton City Council","http://opendatacommunities.org/id/metropolitan-district-council/wolverhampton","708708","William Gough Limited","85574","6,201.07","R&M - Departmental planned (external)","130233396","23/11/2018","Maintenance Programme","Civic Centre Repairs & Maintenance","R2001"
"Wolverhampton City Council","http://opendatacommunities.org/id/metropolitan-district-council/wolverhampton","708708","William Gough Limited","85580","13,032.58","R&M - Departmental planned (external)","130234339","23/11/2018","Maintenance Programme","Centralised R&M","R2001"
"Wolverhampton City Council","http://opendatacommunities.org/id/metropolitan-district-council/wolverhampton","708708","William Gough Limited","85524","3,757.92","R&M - Departmental planned (external)","130232664","14/11/2018","Maintenance Programme","Centralised R&M","R2001"
"Wolverhampton City Council","http://opendatacommunities.org/id/metropolitan-district-council/wolverhampton","708708","William Gough Limited","85654","876.02","Services - Consultants","130234964","30/11/2018","Planning","Building Consultancy","R4404"
"Wolverhampton City Council","http://opendatacommunities.org/id/metropolitan-district-council/wolverhampton","708708","William Gough Limited","85174","228.70","Construction and Conversion","130228721","30/11/2018","-","GF - Cricket provision","C1100"
"Wolverhampton City Council","http://opendatacommunities.org/id/metropolitan-district-council/wolverhampton","708722","Windsor High School - School Fund","P19223320181126","600.00","Grant Payments to Individuals","190534104","29/11/2018","Children and young people in care","Pupil Premium","R6402"
"Wolverhampton City Council","http://opendatacommunities.org/id/metropolitan-district-council/wolverhampton","708756","Wolverhampton Citizens Advice Bureau","932-18","3,213.00","Training Expenses","130232404","07/11/2018","Local Economy","Universal Credit","R1650"
"Wolverhampton City Council","http://opendatacommunities.org/id/metropolitan-district-council/wolverhampton","708761","Wolverhampton Doctors Limited","M2018Q215HL1IHCQ","336.50","TPP - Public Health Contracts","190535835","30/11/2018","Healthy Life Expectancy","Healthy Lifestyles","R5060"
"Wolverhampton City Council","http://opendatacommunities.org/id/metropolitan-district-council/wolverhampton","708761","Wolverhampton Doctors Limited","M2018Q215HL2COMQ","3,375.00","TPP - Public Health Contracts","190535836","30/11/2018","Healthy Life Expectancy","Healthy Lifestyles","R5060"
"Wolverhampton City Council","http://opendatacommunities.org/id/metropolitan-district-council/wolverhampton","708770","Wolverhampton Homes Limited","HF10521/LP","2,950.24","Insurance - General","190531351","21/11/2018","Audit Services","Property Insurances","R4962"
"Wolverhampton City Council","http://opendatacommunities.org/id/metropolitan-district-council/wolverhampton","708770","Wolverhampton Homes Limited","2600024216","5,868.87","Construction and Conversion","130209636","21/11/2018","-","Adaptations for People with Disabilites","C1100"
"Wolverhampton City Council","http://opendatacommunities.org/id/metropolitan-district-council/wolverhampton","708770","Wolverhampton Homes Limited","2600027043","325.00","Services - Professional Fees","130231505","07/11/2018","Public Protection","Regulatory Services - Works in Default","R4400"
"Wolverhampton City Council","http://opendatacommunities.org/id/metropolitan-district-council/wolverhampton","708770","Wolverhampton Homes Limited","2600027034","3,654.00","Training Expenses","130231504","07/11/2018","Local Economy","Universal Credit","R1650"
"Wolverhampton City Council","http://opendatacommunities.org/id/metropolitan-district-council/wolverhampton","708770","Wolverhampton Homes Limited","HF10023","21,231.35","Insurance - General","190532230","23/11/2018","Audit Services","Property Insurances","R4962"
"Wolverhampton City Council","http://opendatacommunities.org/id/metropolitan-district-council/wolverhampton","708770","Wolverhampton Homes Limited","HF10147","19,912.20","Insurance - General","190532229","23/11/2018","Audit Services","Property Insurances","R4962"
"Wolverhampton City Council","http://opendatacommunities.org/id/metropolitan-district-council/wolverhampton","708770","Wolverhampton Homes Limited","My Ref: HF10508/LP","28,539.98","Insurance - General","190533957","29/11/2018","Audit Services","Property Insurances","R4962"
"Wolverhampton City Council","http://opendatacommunities.org/id/metropolitan-district-council/wolverhampton","708776","Wolverhampton Radiators","65136","1,343.30","Equipment - Purchase","190528435","14/11/2018","Fleet Services","Fleet Management","R4000"
"Wolverhampton City Council","http://opendatacommunities.org/id/metropolitan-district-council/wolverhampton","708777","Signal 107","600215984","75.00","Marketing \ Non-staff advertising","130234191","14/11/2018","Markets","Wolverhampton Indoor and Open Market","R4317"
"Wolverhampton City Council","http://opendatacommunities.org/id/metropolitan-district-council/wolverhampton","708777","Signal 107","600215986","1,800.00","Marketing \ Non-staff advertising","130234193","09/11/2018","Markets","Wolverhampton Indoor and Open Market","R4317"
"Wolverhampton City Council","http://opendatacommunities.org/id/metropolitan-district-council/wolverhampton","708777","Signal 107","600177925","470.00","Marketing \ Non-staff advertising","130234189","16/11/2018","Markets","Wolverhampton Indoor and Open Market","R4317"
"Wolverhampton City Council","http://opendatacommunities.org/id/metropolitan-district-council/wolverhampton","708777","Signal 107","600215983","300.00","Marketing \ Non-staff advertising","130234190","16/11/2018","Markets","Wolverhampton Indoor and Open Market","R4317"
"Wolverhampton City Council","http://opendatacommunities.org/id/metropolitan-district-council/wolverhampton","708777","Signal 107","600215985","1,140.00","Marketing \ Non-staff advertising","130234192","16/11/2018","Markets","Wolverhampton Indoor and Open Market","R4317"
"Wolverhampton City Council","http://opendatacommunities.org/id/metropolitan-district-council/wolverhampton","708787","Wolverhampton Travel","181902","2,094.00","Client Transport","130233245","02/11/2018","Special Educational Needs","Special - Transport","R3042"
"Wolverhampton City Council","http://opendatacommunities.org/id/metropolitan-district-council/wolverhampton","708787","Wolverhampton Travel","181902A","1,928.00","Client Transport","130233102","02/11/2018","Special Educational Needs","Special - Transport","R3042"
"Wolverhampton City Council","http://opendatacommunities.org/id/metropolitan-district-council/wolverhampton","708789","Wolverhampton Trophy Centre","7619","360.00","Marketing \ Non-staff advertising","130235820","29/11/2018","Corporate Communications","Communications & Marketing - General","R4317"
"Wolverhampton City Council","http://opendatacommunities.org/id/metropolitan-district-council/wolverhampton","708790","Wolverhampton Voluntary Sector Cncl","1784","15,000.00","TPP - Social Care Support Services","130233246","02/11/2018","Skills","Wolverhampton Volunteer Bureau","R5501"
"Wolverhampton City Council","http://opendatacommunities.org/id/metropolitan-district-council/wolverhampton","708790","Wolverhampton Voluntary Sector Cncl","1785","25,000.00","TPP - Social Care Support Services","130233247","02/11/2018","Skills","Wolverhampton Voluntary Sector Council","R5501"
"Wolverhampton City Council","http://opendatacommunities.org/id/metropolitan-district-council/wolverhampton","708793","Wolverhampton Waste Services Limited","W65/18","17,714.63","TPP - Other contractors","130233249","21/11/2018","Waste and Recycling Service","Waste Disposal - General","R5099"
"Wolverhampton City Council","http://opendatacommunities.org/id/metropolitan-district-council/wolverhampton","708793","Wolverhampton Waste Services Limited","W64/18","573,645.09","TPP - Other contractors","130233248","21/11/2018","Waste and Recycling Service","Waste Disposal - General","R5099"
"Wolverhampton City Council","http://opendatacommunities.org/id/metropolitan-district-council/wolverhampton","708804","Wombourne Travel Limited","008669/008568/008568 - Bacs Rejection","-1,535.70","TPP - Alternative Provision of Education","130234678","14/11/2018","Central Education","Academy Deficits","R5037"
"Wolverhampton City Council","http://opendatacommunities.org/id/metropolitan-district-council/wolverhampton","708804","Wombourne Travel Limited","WOM001","1,994.00","Client Transport","130231913","07/11/2018","Special Educational Needs","Special - Transport","R3042"
"Wolverhampton City Council","http://opendatacommunities.org/id/metropolitan-district-council/wolverhampton","708804","Wombourne Travel Limited","008669 000288 008568 dummy credit","-495.95","TPP - Alternative Provision of Education","130161972","07/11/2018","Schools","Moreton Community School","R5037"
"Wolverhampton City Council","http://opendatacommunities.org/id/metropolitan-district-council/wolverhampton","708804","Wombourne Travel Limited","008669 000288 008568 dummy credit","-1,074.75","TPP - Alternative Provision of Education","130161972","07/11/2018","Schools","Moreton Community School","R5037"
"Wolverhampton City Council","http://opendatacommunities.org/id/metropolitan-district-council/wolverhampton","708804","Wombourne Travel Limited","008669 000288 008568 dummy credit","35.00","TPP - Alternative Provision of Education","130161972","07/11/2018","Schools","Moreton Community School","R5037"
"Wolverhampton City Council","http://opendatacommunities.org/id/metropolitan-district-council/wolverhampton","708804","Wombourne Travel Limited","WOM002","1,899.05","Client Transport","130231914","07/11/2018","Special Educational Needs","Special - Transport","R3042"
"Wolverhampton City Council","http://opendatacommunities.org/id/metropolitan-district-council/wolverhampton","708804","Wombourne Travel Limited","WOM002 - Bacs Rejection","1,899.05","Client Transport","130234677","14/11/2018","Special Educational Needs","Special - Transport","R3042"
"Wolverhampton City Council","http://opendatacommunities.org/id/metropolitan-district-council/wolverhampton","708804","Wombourne Travel Limited","WOM001 - Bacs Rejection","1,994.00","Client Transport","130234676","14/11/2018","Special Educational Needs","Special - Transport","R3042"
"Wolverhampton City Council","http://opendatacommunities.org/id/metropolitan-district-council/wolverhampton","708804","Wombourne Travel Limited","WOM003","2,280.00","Client Transport","130233103","21/11/2018","Special Educational Needs","Special - Transport","R3042"
"Wolverhampton City Council","http://opendatacommunities.org/id/metropolitan-district-council/wolverhampton","708804","Wombourne Travel Limited","WOM004","2,251.00","Client Transport","130233104","21/11/2018","Special Educational Needs","Special - Transport","R3042"
"Wolverhampton City Council","http://opendatacommunities.org/id/metropolitan-district-council/wolverhampton","708827","Wyre Forest School (Worc. County Council)","P19223320181126","600.00","Grant Payments to Individuals","190534104","29/11/2018","Children and young people in care","Pupil Premium","R6402"
"Wolverhampton City Council","http://opendatacommunities.org/id/metropolitan-district-council/wolverhampton","708827","Wyre Forest School (Worc. County Council)","P19223320181126","600.00","Grant Payments to Individuals","190534104","29/11/2018","Children and young people in care","Pupil Premium","R6402"
"Wolverhampton City Council","http://opendatacommunities.org/id/metropolitan-district-council/wolverhampton","708862","Xerox (UK) Limited","900179312","24,411.74","Equipment - Hire","130233787","29/11/2018","ICTS","Document Centre - General","R4001"
"Wolverhampton City Council","http://opendatacommunities.org/id/metropolitan-district-council/wolverhampton","708865","XMA Limited","KM62543","14.00","Computing - Consumables","130232146","14/11/2018","ICTS","Strategic ICTS (ICT Service Budget)","R4532"
"Wolverhampton City Council","http://opendatacommunities.org/id/metropolitan-district-council/wolverhampton","708865","XMA Limited","KM91798","525.00","Plant, Equipment, Machinery & Computer Hardware","130233788","29/11/2018","-","ICT Desktop Refresh","C3000"
"Wolverhampton City Council","http://opendatacommunities.org/id/metropolitan-district-council/wolverhampton","708865","XMA Limited","KM83674","46,090.50","Plant, Equipment, Machinery & Computer Hardware","130233105","21/11/2018","-","ICT Desktop Refresh","C3000"
"Wolverhampton City Council","http://opendatacommunities.org/id/metropolitan-district-council/wolverhampton","708865","XMA Limited","KM96044","318.00","Computing - Consumables","130233913","29/11/2018","ICTS","Strategic ICTS (ICT Service Budget)","R4532"
"Wolverhampton City Council","http://opendatacommunities.org/id/metropolitan-district-council/wolverhampton","708865","XMA Limited","KM61789","138.86","Computing - Consumables","130232145","14/11/2018","ICTS","Strategic ICTS (ICT Service Budget)","R4532"
"Wolverhampton City Council","http://opendatacommunities.org/id/metropolitan-district-council/wolverhampton","708871","Xylem Water Solutions UK Limited","I82840CI","363.65","R&M - Departmental planned (internal)","130233250","21/11/2018","Bereavement Services","Cemeteries","R2000"
"Wolverhampton City Council","http://opendatacommunities.org/id/metropolitan-district-council/wolverhampton","708885","YMCA Wolverhampton","6915","500.00","Services - Professional Fees","130233251","23/11/2018","Skills","Employment Programmes","R4400"
"Wolverhampton City Council","http://opendatacommunities.org/id/metropolitan-district-council/wolverhampton","708886","Ymca City Tots","194","210.00","TPP - Child Care provided for client","130234358","09/11/2018","Adult Education","Discretionary Fund","R5034"
"Wolverhampton City Council","http://opendatacommunities.org/id/metropolitan-district-council/wolverhampton","708886","Ymca City Tots","89","490.00","TPP - Child Care provided for client","130234362","09/11/2018","Adult Education","Discretionary Fund","R5034"
"Wolverhampton City Council","http://opendatacommunities.org/id/metropolitan-district-council/wolverhampton","708886","Ymca City Tots","90","490.00","TPP - Child Care provided for client","130234508","14/11/2018","Adult Education","Discretionary Fund","R5034"
"Wolverhampton City Council","http://opendatacommunities.org/id/metropolitan-district-council/wolverhampton","708886","Ymca City Tots","88","135.00","TPP - Child Care provided for client","130234361","14/11/2018","Adult Education","Discretionary Fund","R5034"
"Wolverhampton City Council","http://opendatacommunities.org/id/metropolitan-district-council/wolverhampton","708886","Ymca City Tots","71","140.00","TPP - Child Care provided for client","130234360","09/11/2018","Adult Education","Discretionary Fund","R5034"
"Wolverhampton City Council","http://opendatacommunities.org/id/metropolitan-district-council/wolverhampton","708886","Ymca City Tots","102","490.00","TPP - Child Care provided for client","130234357","09/11/2018","Adult Education","Discretionary Fund","R5034"
"Wolverhampton City Council","http://opendatacommunities.org/id/metropolitan-district-council/wolverhampton","708886","Ymca City Tots","63","525.00","TPP - Child Care provided for client","130234359","23/11/2018","Adult Education","Discretionary Fund","R5034"
"Wolverhampton City Council","http://opendatacommunities.org/id/metropolitan-district-council/wolverhampton","708891","Yorkshire Purchasing Organisation","611434651","50.90","Stationery","130234674","14/11/2018","Schools","Green Park Special School","R4308"
"Wolverhampton City Council","http://opendatacommunities.org/id/metropolitan-district-council/wolverhampton","708915","Zagota Creations Limited","11952","750.00","R&M - Departmental planned (external)","130232031","07/11/2018","Bereavement Services","Crematorium","R2001"
"Wolverhampton City Council","http://opendatacommunities.org/id/metropolitan-district-council/wolverhampton","708931","Zurich Insurance PLC","QLA 02G037-0313-00 PA","9,243.49","Insurance - General","190527442","14/11/2018","Audit Services","Personal Accident","R4962"
"Wolverhampton City Council","http://opendatacommunities.org/id/metropolitan-district-council/wolverhampton","708931","Zurich Insurance PLC","QLA 02G037-0313-00 Motor","117,637.28","Insurance - General","190527440","14/11/2018","Audit Services","Motor Vehicles","R4962"
"Wolverhampton City Council","http://opendatacommunities.org/id/metropolitan-district-council/wolverhampton","708931","Zurich Insurance PLC","QLA 02G037-0313-00 Engineering","6,474.95","Insurance - General","190527441","14/11/2018","Audit Services","Engineering","R4962"
"Wolverhampton City Council","http://opendatacommunities.org/id/metropolitan-district-council/wolverhampton","708931","Zurich Insurance PLC","SJ 02G037-0016 School Journey","9,794.51","Insurance - General","190527443","14/11/2018","Audit Services","Personal Accident","R4962"
"Wolverhampton City Council","http://opendatacommunities.org/id/metropolitan-district-council/wolverhampton","708931","Zurich Insurance PLC","EI 02G037-0317 Enginnering Inspections","42,527.67","Insurance - General","190527444","14/11/2018","Audit Services","Engineering","R4962"
"Wolverhampton City Council","http://opendatacommunities.org/id/metropolitan-district-council/wolverhampton","709298","C Hopkins","00048","510.00","TPP - Maintenance Contractor - General","190535420","30/11/2018","Transportation","Cycling Schemes - Bikeability","R5720"
"Wolverhampton City Council","http://opendatacommunities.org/id/metropolitan-district-council/wolverhampton","709319","A G Jones Stocktakers","181052","100.00","Services - Professional Fees","130234364","09/11/2018","Visitor Economy","Bantock - Tea Rooms","R4400"
"Wolverhampton City Council","http://opendatacommunities.org/id/metropolitan-district-council/wolverhampton","709319","A G Jones Stocktakers","181053","100.00","Services - Professional Fees","130234365","09/11/2018","Visitor Economy","Art Gallery Tea Room","R4400"
"Wolverhampton City Council","http://opendatacommunities.org/id/metropolitan-district-council/wolverhampton","709319","A G Jones Stocktakers","181051","100.00","Services - Professional Fees","130234363","09/11/2018","Visitor Economy","The Little Civic","R4400"
"Wolverhampton City Council","http://opendatacommunities.org/id/metropolitan-district-council/wolverhampton","709704","A.B.C.- Countdown Cars Limited","5679","139.00","Client Transport","130235063","21/11/2018","Inclusion Support","Inclusion Support","R3042"
"Wolverhampton City Council","http://opendatacommunities.org/id/metropolitan-district-council/wolverhampton","709704","A.B.C.- Countdown Cars Limited","5749","179.00","Client Transport","130234971","21/11/2018","Specialist Support","Upper Pendeford Farm Short Breaks Centre","R3042"
"Wolverhampton City Council","http://opendatacommunities.org/id/metropolitan-district-council/wolverhampton","709704","A.B.C.- Countdown Cars Limited","5716","20.00","TPP - Alternative Provision of Education","130234970","21/11/2018","Specialist Support","Alternative Provision","R5037"
"Wolverhampton City Council","http://opendatacommunities.org/id/metropolitan-district-council/wolverhampton","709704","A.B.C.- Countdown Cars Limited","4896","347.00","TPP - Alternative Provision of Education","130235605","23/11/2018","Specialist Support","Alternative Provision","R5037"
"Wolverhampton City Council","http://opendatacommunities.org/id/metropolitan-district-council/wolverhampton","709704","A.B.C.- Countdown Cars Limited","5171","125.00","Client Transport","130235606","29/11/2018","Special Educational Needs","SEN Education OOC","R3042"
"Wolverhampton City Council","http://opendatacommunities.org/id/metropolitan-district-council/wolverhampton","709704","A.B.C.- Countdown Cars Limited","4884","125.00","Client Transport","130235604","29/11/2018","Special Educational Needs","SEN Education OOC","R3042"
"Wolverhampton City Council","http://opendatacommunities.org/id/metropolitan-district-council/wolverhampton","710375","Access Hire Nationwide Limited","76433","1,357.00","Hire of Vehicles","190532907","23/11/2018","Fleet Services","Fleet Management","R3200"
"Wolverhampton City Council","http://opendatacommunities.org/id/metropolitan-district-council/wolverhampton","710375","Access Hire Nationwide Limited","76496","225.00","Equipment - Hire","130234028","21/11/2018","Highways Maintenance","Planned Highways Maintenance","R4001"
"Wolverhampton City Council","http://opendatacommunities.org/id/metropolitan-district-council/wolverhampton","710375","Access Hire Nationwide Limited","76436","736.00","Equipment - Hire","130233106","16/11/2018","Highways Maintenance","Planned Highways Maintenance","R4001"
"Wolverhampton City Council","http://opendatacommunities.org/id/metropolitan-district-council/wolverhampton","710375","Access Hire Nationwide Limited","76435","1,334.00","Hire of Vehicles","190532909","23/11/2018","Fleet Services","Fleet Management","R3200"
"Wolverhampton City Council","http://opendatacommunities.org/id/metropolitan-district-council/wolverhampton","710375","Access Hire Nationwide Limited","76434","1,334.00","Hire of Vehicles","190532908","23/11/2018","Fleet Services","Fleet Management","R3200"
"Wolverhampton City Council","http://opendatacommunities.org/id/metropolitan-district-council/wolverhampton","710375","Access Hire Nationwide Limited","76432","1,357.00","Hire of Vehicles","190532906","23/11/2018","Fleet Services","Fleet Management","R3200"
"Wolverhampton City Council","http://opendatacommunities.org/id/metropolitan-district-council/wolverhampton","710461","Broadway Halls Care Home","P190555 11111820181119","277.12","TPP - Residential Care - Short Term","190530700","21/11/2018","Older People Care Purchasing","OP Care Purchasing (Spot Placements)","R5401"
"Wolverhampton City Council","http://opendatacommunities.org/id/metropolitan-district-council/wolverhampton","710461","Broadway Halls Care Home","P190770 09121820181119","2,401.73","TPP - Residential Care - Short Term","190530701","21/11/2018","Older People Care Purchasing","OP Care Purchasing (Spot Placements)","R5401"
"Wolverhampton City Council","http://opendatacommunities.org/id/metropolitan-district-council/wolverhampton","710461","Broadway Halls Care Home","P189737 11111820181030","1,293.24","TPP - Residential Care - Short Term","190523415","09/11/2018","Older People Care Purchasing","OP Care Purchasing (Spot Placements)","R5401"
"Wolverhampton City Council","http://opendatacommunities.org/id/metropolitan-district-council/wolverhampton","710461","Broadway Halls Care Home","P189737 11111820181030","1,385.62","TPP - Residential Care - Short Term","190523415","09/11/2018","Older People Care Purchasing","OP Care Purchasing (Spot Placements)","R5401"
"Wolverhampton City Council","http://opendatacommunities.org/id/metropolitan-district-council/wolverhampton","710461","Broadway Halls Care Home","P185897 14101820180924","3,417.85","TPP - Residential Care - Short Term","190510295","09/11/2018","Older People Care Purchasing","OP Care Purchasing (Spot Placements)","R5401"
"Wolverhampton City Council","http://opendatacommunities.org/id/metropolitan-district-council/wolverhampton","710479","EON","116379","9,970.00","Materials","130232906","21/11/2018","Street Lighting","Signs Illuminated","R4007"
"Wolverhampton City Council","http://opendatacommunities.org/id/metropolitan-district-council/wolverhampton","710569","British Gas Business","710787533","-27.08","Electricity","190534161","29/11/2018","City Development","Southside","R2100"
"Wolverhampton City Council","http://opendatacommunities.org/id/metropolitan-district-council/wolverhampton","710569","British Gas Business","710787555","29.03","Electricity","190534164","29/11/2018","City Development","Southside","R2100"
"Wolverhampton City Council","http://opendatacommunities.org/id/metropolitan-district-council/wolverhampton","710569","British Gas Business","710787535","-54.44","Electricity","190534159","29/11/2018","City Development","Southside","R2100"
"Wolverhampton City Council","http://opendatacommunities.org/id/metropolitan-district-council/wolverhampton","710569","British Gas Business","710787553","85.24","Electricity","190534162","29/11/2018","City Development","Southside","R2100"
"Wolverhampton City Council","http://opendatacommunities.org/id/metropolitan-district-council/wolverhampton","710569","British Gas Business","710787534","-43.88","Electricity","190534160","29/11/2018","City Development","Southside","R2100"
"Wolverhampton City Council","http://opendatacommunities.org/id/metropolitan-district-council/wolverhampton","710569","British Gas Business","710787554","42.61","Electricity","190534163","29/11/2018","City Development","Southside","R2100"
"Wolverhampton City Council","http://opendatacommunities.org/id/metropolitan-district-council/wolverhampton","710569","British Gas Business","991231140","17.23","Electricity","190534158","29/11/2018","Corporate Asset Management","Central Utilities to Recharge","R2100"
"Wolverhampton City Council","http://opendatacommunities.org/id/metropolitan-district-council/wolverhampton","710569","British Gas Business","965288636","56.50","Electricity","190534165","29/11/2018","Estates and Valuations","Industrial Premises ; Fordhouse Road","R2100"
"Wolverhampton City Council","http://opendatacommunities.org/id/metropolitan-district-council/wolverhampton","710569","British Gas Business","430496999","18.17","Electricity","190527401","14/11/2018","Corporate Asset Management","Central Utilities to Recharge","R2100"
"Wolverhampton City Council","http://opendatacommunities.org/id/metropolitan-district-council/wolverhampton","710569","British Gas Business","957403119b","45.00","Electricity","190527400","14/11/2018","Corporate Asset Management","Central Utilities to Recharge","R2100"
"Wolverhampton City Council","http://opendatacommunities.org/id/metropolitan-district-council/wolverhampton","710569","British Gas Business","971387416","77.38","Gas","190527397","14/11/2018","Estates and Valuations","Industrial Premises ; Fordhouse Road","R2101"
"Wolverhampton City Council","http://opendatacommunities.org/id/metropolitan-district-council/wolverhampton","710569","British Gas Business","460487657","17.81","Electricity","190527398","14/11/2018","Corporate Asset Management","Central Utilities to Recharge","R2100"
"Wolverhampton City Council","http://opendatacommunities.org/id/metropolitan-district-council/wolverhampton","710569","British Gas Business","957403119a","22.97","Electricity","190527396","14/11/2018","Corporate Asset Management","Central Utilities to Recharge","R2100"
"Wolverhampton City Council","http://opendatacommunities.org/id/metropolitan-district-council/wolverhampton","710569","British Gas Business","984298482","17.81","Electricity","190527399","14/11/2018","Corporate Asset Management","Central Utilities to Recharge","R2100"
"Wolverhampton City Council","http://opendatacommunities.org/id/metropolitan-district-council/wolverhampton","710570","Memsafe LTD","2707","1,081.92","Services - Professional Fees","130230247","23/11/2018","Bereavement Services","Cemeteries","R4400"
"Wolverhampton City Council","http://opendatacommunities.org/id/metropolitan-district-council/wolverhampton","710573","Western Power Distribution (West Mids) t/a Western Power Distribution","KI00141404","2,252.98","TPP - Maintenance on Other Roads","130231771","07/11/2018","Street Lighting","Street Lighting Maintenance","R5710"
"Wolverhampton City Council","http://opendatacommunities.org/id/metropolitan-district-council/wolverhampton","710573","Western Power Distribution (West Mids) t/a Western Power Distribution","KP00147602","681.25","TPP - Maintenance on Other Roads","130234624","21/11/2018","Street Lighting","Street Lighting Maintenance","R5710"
"Wolverhampton City Council","http://opendatacommunities.org/id/metropolitan-district-council/wolverhampton","710573","Western Power Distribution (West Mids) t/a Western Power Distribution","KP00147763","681.23","TPP - Maintenance on Other Roads","130232410","07/11/2018","Street Lighting","Street Lighting Maintenance","R5710"
"Wolverhampton City Council","http://opendatacommunities.org/id/metropolitan-district-council/wolverhampton","710573","Western Power Distribution (West Mids) t/a Western Power Distribution","KP00147696","681.23","TPP - Maintenance on Other Roads","130231609","07/11/2018","Street Lighting","Street Lighting Maintenance","R5710"
"Wolverhampton City Council","http://opendatacommunities.org/id/metropolitan-district-council/wolverhampton","710573","Western Power Distribution (West Mids) t/a Western Power Distribution","KP00147748","557.19","TPP - Maintenance on Other Roads","130232409","07/11/2018","Street Lighting","Street Lighting Maintenance","R5710"
"Wolverhampton City Council","http://opendatacommunities.org/id/metropolitan-district-council/wolverhampton","710573","Western Power Distribution (West Mids) t/a Western Power Distribution","KP00147747","557.19","TPP - Maintenance on Other Roads","130232408","07/11/2018","Street Lighting","Street Lighting Maintenance","R5710"
"Wolverhampton City Council","http://opendatacommunities.org/id/metropolitan-district-council/wolverhampton","710573","Western Power Distribution (West Mids) t/a Western Power Distribution","KP00147527","681.23","TPP - Maintenance on Other Roads","130231606","14/11/2018","Street Lighting","Street Lighting Maintenance","R5710"
"Wolverhampton City Council","http://opendatacommunities.org/id/metropolitan-district-council/wolverhampton","710573","Western Power Distribution (West Mids) t/a Western Power Distribution","KI00141530","1.24","TPP - Maintenance on Other Roads","130234366","21/11/2018","Street Lighting","Street Lighting Maintenance","R5710"
"Wolverhampton City Council","http://opendatacommunities.org/id/metropolitan-district-council/wolverhampton","710573","Western Power Distribution (West Mids) t/a Western Power Distribution","KI00141530","157.35","TPP - Maintenance on Other Roads","130234366","21/11/2018","Street Lighting","Street Lighting Maintenance","R5710"
"Wolverhampton City Council","http://opendatacommunities.org/id/metropolitan-district-council/wolverhampton","710573","Western Power Distribution (West Mids) t/a Western Power Distribution","KI00141530","-157.35","TPP - Maintenance on Other Roads","130234366","21/11/2018","Street Lighting","Street Lighting Maintenance","R5710"
"Wolverhampton City Council","http://opendatacommunities.org/id/metropolitan-district-council/wolverhampton","710573","Western Power Distribution (West Mids) t/a Western Power Distribution","KI00141530","156.11","TPP - Maintenance on Other Roads","130234366","21/11/2018","Street Lighting","Street Lighting Maintenance","R5710"
"Wolverhampton City Council","http://opendatacommunities.org/id/metropolitan-district-council/wolverhampton","710573","Western Power Distribution (West Mids) t/a Western Power Distribution","KP00147695","681.23","TPP - Maintenance on Other Roads","130231608","07/11/2018","Street Lighting","Street Lighting Maintenance","R5710"
"Wolverhampton City Council","http://opendatacommunities.org/id/metropolitan-district-council/wolverhampton","710573","Western Power Distribution (West Mids) t/a Western Power Distribution","KP00147765","557.19","TPP - Maintenance on Other Roads","130232412","07/11/2018","Street Lighting","Street Lighting Maintenance","R5710"
"Wolverhampton City Council","http://opendatacommunities.org/id/metropolitan-district-council/wolverhampton","710573","Western Power Distribution (West Mids) t/a Western Power Distribution","KP00147764","557.19","TPP - Maintenance on Other Roads","130232411","07/11/2018","Street Lighting","Street Lighting Maintenance","R5710"
"Wolverhampton City Council","http://opendatacommunities.org/id/metropolitan-district-council/wolverhampton","710573","Western Power Distribution (West Mids) t/a Western Power Distribution","KI00141579","1,326.36","TPP - Maintenance on Other Roads","130234367","29/11/2018","Street Lighting","Street Lighting Maintenance","R5710"
"Wolverhampton City Council","http://opendatacommunities.org/id/metropolitan-district-council/wolverhampton","710573","Western Power Distribution (West Mids) t/a Western Power Distribution","KI00141579","-1,326.36","TPP - Maintenance on Other Roads","130234367","29/11/2018","Street Lighting","Street Lighting Maintenance","R5710"
"Wolverhampton City Council","http://opendatacommunities.org/id/metropolitan-district-council/wolverhampton","710573","Western Power Distribution (West Mids) t/a Western Power Distribution","KI00141579","418.70","TPP - Maintenance on Other Roads","130234367","29/11/2018","Street Lighting","Street Lighting Maintenance","R5710"
"Wolverhampton City Council","http://opendatacommunities.org/id/metropolitan-district-council/wolverhampton","710573","Western Power Distribution (West Mids) t/a Western Power Distribution","KI00141579","907.67","TPP - Maintenance on Other Roads","130234367","29/11/2018","Street Lighting","Street Lighting Maintenance","R5710"
"Wolverhampton City Council","http://opendatacommunities.org/id/metropolitan-district-council/wolverhampton","710573","Western Power Distribution (West Mids) t/a Western Power Distribution","KP00148101","597.37","TPP - Maintenance on Other Roads","130233252","16/11/2018","Street Lighting","Street Lighting Maintenance","R5710"
"Wolverhampton City Council","http://opendatacommunities.org/id/metropolitan-district-council/wolverhampton","710573","Western Power Distribution (West Mids) t/a Western Power Distribution","KI00141591","284.85","TPP - Maintenance on Other Roads","130234368","29/11/2018","Street Lighting","Street Lighting Maintenance","R5710"
"Wolverhampton City Council","http://opendatacommunities.org/id/metropolitan-district-council/wolverhampton","710573","Western Power Distribution (West Mids) t/a Western Power Distribution","KI00141591","-284.85","TPP - Maintenance on Other Roads","130234368","29/11/2018","Street Lighting","Street Lighting Maintenance","R5710"
"Wolverhampton City Council","http://opendatacommunities.org/id/metropolitan-district-council/wolverhampton","710573","Western Power Distribution (West Mids) t/a Western Power Distribution","KI00141591","281.69","TPP - Maintenance on Other Roads","130234368","29/11/2018","Street Lighting","Street Lighting Maintenance","R5710"
"Wolverhampton City Council","http://opendatacommunities.org/id/metropolitan-district-council/wolverhampton","710573","Western Power Distribution (West Mids) t/a Western Power Distribution","KI00141591","3.16","TPP - Maintenance on Other Roads","130234368","29/11/2018","Street Lighting","Street Lighting Maintenance","R5710"
"Wolverhampton City Council","http://opendatacommunities.org/id/metropolitan-district-council/wolverhampton","710573","Western Power Distribution (West Mids) t/a Western Power Distribution","KP00147881","681.23","TPP - Maintenance on Other Roads","130232413","09/11/2018","Street Lighting","Street Lighting Maintenance","R5710"
"Wolverhampton City Council","http://opendatacommunities.org/id/metropolitan-district-council/wolverhampton","710588","Holy Trinity CE VC Prim Sch&Comm.Nurs Ut","P19123620181119","600.00","Grant Payments to Individuals","190530594","21/11/2018","Children and young people in care","Pupil Premium","R6402"
"Wolverhampton City Council","http://opendatacommunities.org/id/metropolitan-district-council/wolverhampton","710600","E H Smith Builders Merchant LTD","0005/00065325","403.20","Materials","130231511","07/11/2018","Highways Maintenance","Patching","R4007"
"Wolverhampton City Council","http://opendatacommunities.org/id/metropolitan-district-council/wolverhampton","710600","E H Smith Builders Merchant LTD","0002/00082701","3,642.00","Materials","130234029","30/11/2018","Highways Maintenance","Patching","R4007"
"Wolverhampton City Council","http://opendatacommunities.org/id/metropolitan-district-council/wolverhampton","710600","E H Smith Builders Merchant LTD","0002/00081739","2,798.10","Materials","130233914","29/11/2018","Highways Maintenance","Patching","R4007"
"Wolverhampton City Council","http://opendatacommunities.org/id/metropolitan-district-council/wolverhampton","710609","Drs Saini & Mehta","M2018Q215HL2COMQ","1,150.00","TPP - Public Health Contracts","190535818","30/11/2018","Healthy Life Expectancy","Healthy Lifestyles","R5060"
"Wolverhampton City Council","http://opendatacommunities.org/id/metropolitan-district-council/wolverhampton","710609","Drs Saini & Mehta","M2018Q215HL1IHCQ","23.50","TPP - Public Health Contracts","190535817","30/11/2018","Healthy Life Expectancy","Healthy Lifestyles","R5060"
"Wolverhampton City Council","http://opendatacommunities.org/id/metropolitan-district-council/wolverhampton","710610","Dr A Sharma","M2018Q215HL1IHCQ","4.00","TPP - Public Health Contracts","190535829","30/11/2018","Healthy Life Expectancy","Healthy Lifestyles","R5060"
"Wolverhampton City Council","http://opendatacommunities.org/id/metropolitan-district-council/wolverhampton","710610","Dr A Sharma","M2018Q215HL2COMQ","175.00","TPP - Public Health Contracts","190535830","30/11/2018","Healthy Life Expectancy","Healthy Lifestyles","R5060"
"Wolverhampton City Council","http://opendatacommunities.org/id/metropolitan-district-council/wolverhampton","710635","Mrs D K Sahota","2018-02","18.00","TPP - Public Health Contracts","130235977","29/11/2018","Healthier Places Service","Sport Development","R5060"
"Wolverhampton City Council","http://opendatacommunities.org/id/metropolitan-district-council/wolverhampton","710644","RSA Academy","P19223320181126","600.00","Grant Payments to Individuals","190534104","29/11/2018","Children and young people in care","Pupil Premium","R6402"
"Wolverhampton City Council","http://opendatacommunities.org/id/metropolitan-district-council/wolverhampton","710664","NonStop Recruitment LTD","152698","1,312.50","Agency Staff","130231345","07/11/2018","Strengthening Families","CP Area 1 - Eastfield","R1100"
"Wolverhampton City Council","http://opendatacommunities.org/id/metropolitan-district-council/wolverhampton","710744","Green Leevs","6369","245.00","Hire of Plant","130234194","09/11/2018","School Planning & Resources","Learning Technologies","R3201"
"Wolverhampton City Council","http://opendatacommunities.org/id/metropolitan-district-council/wolverhampton","710780","Wilson & Scott (Highways) LTD","27958","1,819.34","Construction and Conversion","130228501","21/11/2018","-","Safety Programme","C1100"
"Wolverhampton City Council","http://opendatacommunities.org/id/metropolitan-district-council/wolverhampton","710780","Wilson & Scott (Highways) LTD","28016","539.46","Construction and Conversion","130229422","23/11/2018","-","Safety Programme","C1100"
"Wolverhampton City Council","http://opendatacommunities.org/id/metropolitan-district-council/wolverhampton","710780","Wilson & Scott (Highways) LTD","28389","2,285.12","Construction and Conversion","130234509","29/11/2018","-","Safety Programme","C1100"
"Wolverhampton City Council","http://opendatacommunities.org/id/metropolitan-district-council/wolverhampton","710780","Wilson & Scott (Highways) LTD","28393","2,626.50","TPP - Maintenance on Principal Roads","130234510","29/11/2018","Highways Maintenance","Road Markings","R5700"
"Wolverhampton City Council","http://opendatacommunities.org/id/metropolitan-district-council/wolverhampton","710795","The Dudley Group NHS Foundation Trust","2000005669","234.00","TPP - Public Health Contracts","130235984","29/11/2018","Starting and Developing Well","Sexual Health","R5060"
"Wolverhampton City Council","http://opendatacommunities.org/id/metropolitan-district-council/wolverhampton","710795","The Dudley Group NHS Foundation Trust","2000005641","4,359.14","TPP - Public Health Contracts","130235981","29/11/2018","Starting and Developing Well","Sexual Health","R5060"
"Wolverhampton City Council","http://opendatacommunities.org/id/metropolitan-district-council/wolverhampton","710795","The Dudley Group NHS Foundation Trust","2000005668","6,087.20","TPP - Public Health Contracts","130235983","29/11/2018","Starting and Developing Well","Sexual Health","R5060"
"Wolverhampton City Council","http://opendatacommunities.org/id/metropolitan-district-council/wolverhampton","710795","The Dudley Group NHS Foundation Trust","2000005642","702.00","TPP - Public Health Contracts","130235982","29/11/2018","Starting and Developing Well","Sexual Health","R5060"
"Wolverhampton City Council","http://opendatacommunities.org/id/metropolitan-district-council/wolverhampton","710795","The Dudley Group NHS Foundation Trust","2000005588","4,359.24","TPP - Public Health Contracts","130235979","29/11/2018","Starting and Developing Well","Sexual Health","R5060"
"Wolverhampton City Council","http://opendatacommunities.org/id/metropolitan-district-council/wolverhampton","710795","The Dudley Group NHS Foundation Trust","2000005684","6,312.78","TPP - Public Health Contracts","130235985","29/11/2018","Starting and Developing Well","Sexual Health","R5060"
"Wolverhampton City Council","http://opendatacommunities.org/id/metropolitan-district-council/wolverhampton","710795","The Dudley Group NHS Foundation Trust","2000005548","468.00","TPP - Public Health Contracts","130235978","29/11/2018","Starting and Developing Well","Sexual Health","R5060"
"Wolverhampton City Council","http://opendatacommunities.org/id/metropolitan-district-council/wolverhampton","710795","The Dudley Group NHS Foundation Trust","2000005589","546.00","TPP - Public Health Contracts","130235980","29/11/2018","Starting and Developing Well","Sexual Health","R5060"
"Wolverhampton City Council","http://opendatacommunities.org/id/metropolitan-district-council/wolverhampton","710804","Worcester Health & Care","T029037 GUM September 18","133.00","TPP - Public Health Contracts","190532221","23/11/2018","Starting and Developing Well","Sexual Health","R5060"
"Wolverhampton City Council","http://opendatacommunities.org/id/metropolitan-district-council/wolverhampton","710818","Benny Semp (Artist-Educator)","926B","275.00","Services - Professional Fees","130234369","29/11/2018","Visitor Economy","Education And Access","R4400"
"Wolverhampton City Council","http://opendatacommunities.org/id/metropolitan-district-council/wolverhampton","710828","Andrew Page","061502580","81.05","Equipment - Purchase","190535698","30/11/2018","Fleet Services","Fleet Management","R4000"
"Wolverhampton City Council","http://opendatacommunities.org/id/metropolitan-district-council/wolverhampton","710828","Andrew Page","H341024","-3.89","Equipment - Purchase","190525596","09/11/2018","Fleet Services","Fleet Management","R4000"
"Wolverhampton City Council","http://opendatacommunities.org/id/metropolitan-district-council/wolverhampton","710828","Andrew Page","061499758","3.20","Equipment - Purchase","190525986","09/11/2018","Fleet Services","Fleet Management","R4000"
"Wolverhampton City Council","http://opendatacommunities.org/id/metropolitan-district-council/wolverhampton","710828","Andrew Page","061499758","7.94","Equipment - Purchase","190525986","09/11/2018","Fleet Services","Fleet Management","R4000"
"Wolverhampton City Council","http://opendatacommunities.org/id/metropolitan-district-council/wolverhampton","710828","Andrew Page","061503285","24.48","Equipment - Purchase","190535700","30/11/2018","Fleet Services","Fleet Management","R4000"
"Wolverhampton City Council","http://opendatacommunities.org/id/metropolitan-district-council/wolverhampton","710828","Andrew Page","061498913","13.34","Equipment - Purchase","190525556","09/11/2018","Fleet Services","Fleet Management","R4000"
"Wolverhampton City Council","http://opendatacommunities.org/id/metropolitan-district-council/wolverhampton","710828","Andrew Page","061498913","57.39","Equipment - Purchase","190525556","09/11/2018","Fleet Services","Fleet Management","R4000"
"Wolverhampton City Council","http://opendatacommunities.org/id/metropolitan-district-council/wolverhampton","710828","Andrew Page","061499661","3.20","Equipment - Purchase","190525985","09/11/2018","Fleet Services","Fleet Management","R4000"
"Wolverhampton City Council","http://opendatacommunities.org/id/metropolitan-district-council/wolverhampton","710828","Andrew Page","061499661","30.48","Equipment - Purchase","190525985","09/11/2018","Fleet Services","Fleet Management","R4000"
"Wolverhampton City Council","http://opendatacommunities.org/id/metropolitan-district-council/wolverhampton","710828","Andrew Page","061499951","17.39","Equipment - Purchase","190525987","09/11/2018","Fleet Services","Fleet Management","R4000"
"Wolverhampton City Council","http://opendatacommunities.org/id/metropolitan-district-council/wolverhampton","710828","Andrew Page","061499107","2.66","Equipment - Purchase","190525557","09/11/2018","Fleet Services","Fleet Management","R4000"
"Wolverhampton City Council","http://opendatacommunities.org/id/metropolitan-district-council/wolverhampton","710828","Andrew Page","061499107","5.26","Equipment - Purchase","190525557","09/11/2018","Fleet Services","Fleet Management","R4000"
"Wolverhampton City Council","http://opendatacommunities.org/id/metropolitan-district-council/wolverhampton","710828","Andrew Page","061499107","3.89","Equipment - Purchase","190525557","09/11/2018","Fleet Services","Fleet Management","R4000"
"Wolverhampton City Council","http://opendatacommunities.org/id/metropolitan-district-council/wolverhampton","710828","Andrew Page","061499107","29.85","Equipment - Purchase","190525557","09/11/2018","Fleet Services","Fleet Management","R4000"
"Wolverhampton City Council","http://opendatacommunities.org/id/metropolitan-district-council/wolverhampton","710828","Andrew Page","H341024.1","-26.14","Equipment - Purchase","190525597","09/11/2018","Fleet Services","Fleet Management","R4000"
"Wolverhampton City Council","http://opendatacommunities.org/id/metropolitan-district-council/wolverhampton","710828","Andrew Page","061503354","11.76","Equipment - Purchase","190535701","30/11/2018","Fleet Services","Fleet Management","R4000"
"Wolverhampton City Council","http://opendatacommunities.org/id/metropolitan-district-council/wolverhampton","710828","Andrew Page","061503354","16.66","Equipment - Purchase","190535701","30/11/2018","Fleet Services","Fleet Management","R4000"
"Wolverhampton City Council","http://opendatacommunities.org/id/metropolitan-district-council/wolverhampton","710828","Andrew Page","061503360","75.49","Equipment - Purchase","190535702","30/11/2018","Fleet Services","Fleet Management","R4000"
"Wolverhampton City Council","http://opendatacommunities.org/id/metropolitan-district-council/wolverhampton","710828","Andrew Page","061499537","269.98","Equipment - Purchase","190525984","09/11/2018","Fleet Services","Fleet Management","R4000"
"Wolverhampton City Council","http://opendatacommunities.org/id/metropolitan-district-council/wolverhampton","710828","Andrew Page","061499952","38.94","Equipment - Purchase","190525988","09/11/2018","Fleet Services","Fleet Management","R4000"
"Wolverhampton City Council","http://opendatacommunities.org/id/metropolitan-district-council/wolverhampton","710828","Andrew Page","061499830","26.14","Equipment - Purchase","190525558","09/11/2018","Fleet Services","Fleet Management","R4000"
"Wolverhampton City Council","http://opendatacommunities.org/id/metropolitan-district-council/wolverhampton","710828","Andrew Page","061503078","79.40","Equipment - Purchase","190535699","30/11/2018","Fleet Services","Fleet Management","R4000"
"Wolverhampton City Council","http://opendatacommunities.org/id/metropolitan-district-council/wolverhampton","710828","Andrew Page","061501825","8.54","Equipment - Purchase","190531762","21/11/2018","Fleet Services","Fleet Management","R4000"
"Wolverhampton City Council","http://opendatacommunities.org/id/metropolitan-district-council/wolverhampton","710828","Andrew Page","061501825","43.90","Equipment - Purchase","190531762","21/11/2018","Fleet Services","Fleet Management","R4000"
"Wolverhampton City Council","http://opendatacommunities.org/id/metropolitan-district-council/wolverhampton","710828","Andrew Page","061501825","11.76","Equipment - Purchase","190531762","21/11/2018","Fleet Services","Fleet Management","R4000"
"Wolverhampton City Council","http://opendatacommunities.org/id/metropolitan-district-council/wolverhampton","710828","Andrew Page","061501825","41.89","Equipment - Purchase","190531762","21/11/2018","Fleet Services","Fleet Management","R4000"
"Wolverhampton City Council","http://opendatacommunities.org/id/metropolitan-district-council/wolverhampton","710828","Andrew Page","061501825","43.90","Equipment - Purchase","190531762","21/11/2018","Fleet Services","Fleet Management","R4000"
"Wolverhampton City Council","http://opendatacommunities.org/id/metropolitan-district-council/wolverhampton","710828","Andrew Page","061500391","11.56","Equipment - Purchase","190531756","21/11/2018","Fleet Services","Fleet Management","R4000"
"Wolverhampton City Council","http://opendatacommunities.org/id/metropolitan-district-council/wolverhampton","710828","Andrew Page","061500984","44.22","Equipment - Purchase","190531757","21/11/2018","Fleet Services","Fleet Management","R4000"
"Wolverhampton City Council","http://opendatacommunities.org/id/metropolitan-district-council/wolverhampton","710828","Andrew Page","061501147","2.17","Equipment - Purchase","190531759","21/11/2018","Fleet Services","Fleet Management","R4000"
"Wolverhampton City Council","http://opendatacommunities.org/id/metropolitan-district-council/wolverhampton","710828","Andrew Page","061501764","8.54","Equipment - Purchase","190531761","21/11/2018","Fleet Services","Fleet Management","R4000"
"Wolverhampton City Council","http://opendatacommunities.org/id/metropolitan-district-council/wolverhampton","710828","Andrew Page","061501281","11.20","Equipment - Purchase","190531760","21/11/2018","Fleet Services","Fleet Management","R4000"
"Wolverhampton City Council","http://opendatacommunities.org/id/metropolitan-district-council/wolverhampton","710828","Andrew Page","061501078","26.68","Equipment - Purchase","190531758","21/11/2018","Fleet Services","Fleet Management","R4000"
"Wolverhampton City Council","http://opendatacommunities.org/id/metropolitan-district-council/wolverhampton","710828","Andrew Page","061500147","9.12","Equipment - Purchase","190528413","14/11/2018","Fleet Services","Fleet Management","R4000"
"Wolverhampton City Council","http://opendatacommunities.org/id/metropolitan-district-council/wolverhampton","710890","Condair PLC","SINV098833","305.90","R&M - Departmental planned (internal)","130232908","21/11/2018","Maintenance Programme","Centralised R&M","R2000"
"Wolverhampton City Council","http://opendatacommunities.org/id/metropolitan-district-council/wolverhampton","710915","Barts Health NHS Trust","353645 GUM M06 2018-19","150.19","TPP - Public Health Contracts","190532218","23/11/2018","Starting and Developing Well","Sexual Health","R5060"
"Wolverhampton City Council","http://opendatacommunities.org/id/metropolitan-district-council/wolverhampton","710928","Yoo Recruit LTD","CWC10293291","343.65","Agency Staff","190527743","14/11/2018","Adult Education","Direct Delivery Team ( L.& D.)","R1100"
"Wolverhampton City Council","http://opendatacommunities.org/id/metropolitan-district-council/wolverhampton","710928","Yoo Recruit LTD","CWC103011","2,988.15","Agency Staff","190534873","30/11/2018","Child Protection","Head of Strengthening Families","R1100"
"Wolverhampton City Council","http://opendatacommunities.org/id/metropolitan-district-council/wolverhampton","710928","Yoo Recruit LTD","CWC10301455","3,363.15","Agency Staff","190535327","30/11/2018","Digital Transformation Programme","Digital Transformation Programme (Recharge to Capital)","R1100"
"Wolverhampton City Council","http://opendatacommunities.org/id/metropolitan-district-council/wolverhampton","710928","Yoo Recruit LTD","CWC10289483","20.80","Agency Staff","190528353","14/11/2018","Strengthening Families","CP Area 5-Whitemore Reans","R1100"
"Wolverhampton City Council","http://opendatacommunities.org/id/metropolitan-district-council/wolverhampton","710928","Yoo Recruit LTD","CWC103012","2,988.15","Agency Staff","190534874","30/11/2018","Child Protection","Head of Strengthening Families","R1100"
"Wolverhampton City Council","http://opendatacommunities.org/id/metropolitan-district-council/wolverhampton","710928","Yoo Recruit LTD","Consolidated67OR","190,528.17","Agency Staff","190534871","30/11/2018","Central Corporate Budgets","Yoo Recruit Payments","R1100"
"Wolverhampton City Council","http://opendatacommunities.org/id/metropolitan-district-council/wolverhampton","710928","Yoo Recruit LTD","CWC1029339","316.88","Agency Staff","190527491","14/11/2018","Learning Disability Provider","Duke Street Bungalows","R1100"
"Wolverhampton City Council","http://opendatacommunities.org/id/metropolitan-district-council/wolverhampton","710928","Yoo Recruit LTD","CWC10289157","407.40","Agency Staff","190528027","14/11/2018","Customer Services","City Direct","R1100"
"Wolverhampton City Council","http://opendatacommunities.org/id/metropolitan-district-council/wolverhampton","710928","Yoo Recruit LTD","CWC10289204","244.40","Agency Staff","190528074","14/11/2018","Cleaning","Cleaning of Buildings - General","R1100"
"Wolverhampton City Council","http://opendatacommunities.org/id/metropolitan-district-council/wolverhampton","710928","Yoo Recruit LTD","CWC10289343","461.63","Agency Staff","190528213","14/11/2018","School Planning & Resources","Technical Support","R1100"
"Wolverhampton City Council","http://opendatacommunities.org/id/metropolitan-district-council/wolverhampton","710928","Yoo Recruit LTD","CWC10293305","48.93","Agency Staff","190527757","14/11/2018","School Planning & Resources","Music Support Team","R1100"
"Wolverhampton City Council","http://opendatacommunities.org/id/metropolitan-district-council/wolverhampton","710928","Yoo Recruit LTD","CWC1028961","432.60","Agency Staff","190527931","14/11/2018","Local Economy","Global Budgets","R1100"
"Wolverhampton City Council","http://opendatacommunities.org/id/metropolitan-district-council/wolverhampton","710928","Yoo Recruit LTD","CWC1028997","53.32","Agency Staff","190527967","14/11/2018","Leisure Services","Bert Williams Leisure Centre","R1100"
"Wolverhampton City Council","http://opendatacommunities.org/id/metropolitan-district-council/wolverhampton","710928","Yoo Recruit LTD","CWC10293226","428.80","Agency Staff","190527678","14/11/2018","Public Service Reform","Electoral Registration","R1100"
"Wolverhampton City Council","http://opendatacommunities.org/id/metropolitan-district-council/wolverhampton","710928","Yoo Recruit LTD","CWC10293299","463.97","Agency Staff","190527751","14/11/2018","Adult Education","Access & FE","R1100"
"Wolverhampton City Council","http://opendatacommunities.org/id/metropolitan-district-council/wolverhampton","710928","Yoo Recruit LTD","CWC10293346","417.12","Agency Staff","190527798","14/11/2018","Human Resources","HR Investigations","R1100"
"Wolverhampton City Council","http://opendatacommunities.org/id/metropolitan-district-council/wolverhampton","710928","Yoo Recruit LTD","CWC10289391","451.88","Agency Staff","190528261","14/11/2018","Human Resources","HR Investigations","R1100"
"Wolverhampton City Council","http://opendatacommunities.org/id/metropolitan-district-council/wolverhampton","710928","Yoo Recruit LTD","CWC10293178","49.50","Agency Staff","190527630","14/11/2018","Cleaning","External Cleaning","R1100"
"Wolverhampton City Council","http://opendatacommunities.org/id/metropolitan-district-council/wolverhampton","710928","Yoo Recruit LTD","CWC10293329","48.84","Agency Staff","190527781","14/11/2018","Visitor Economy","Civic Halls Non-Direct Event Management Account","R1100"
"Wolverhampton City Council","http://opendatacommunities.org/id/metropolitan-district-council/wolverhampton","710928","Yoo Recruit LTD","CWC10289277","432.14","Agency Staff","190528147","14/11/2018","Public Service Reform","Electoral Registration","R1100"
"Wolverhampton City Council","http://opendatacommunities.org/id/metropolitan-district-council/wolverhampton","710928","Yoo Recruit LTD","CWC10293217","166.40","Agency Staff","190527669","14/11/2018","Public Service Reform","Electoral Registration","R1100"
"Wolverhampton City Council","http://opendatacommunities.org/id/metropolitan-district-council/wolverhampton","710928","Yoo Recruit LTD","CWC10293347","1,055.34","Agency Staff","190527799","14/11/2018","Human Resources","HR Investigations","R1100"
"Wolverhampton City Council","http://opendatacommunities.org/id/metropolitan-district-council/wolverhampton","710928","Yoo Recruit LTD","CWC10293348","1,121.01","Agency Staff","190527800","14/11/2018","Human Resources","HR Investigations","R1100"
"Wolverhampton City Council","http://opendatacommunities.org/id/metropolitan-district-council/wolverhampton","710928","Yoo Recruit LTD","CWC10293335","165.24","Agency Staff","190527787","14/11/2018","Leisure Services","WV Active Business Support","R1100"
"Wolverhampton City Council","http://opendatacommunities.org/id/metropolitan-district-council/wolverhampton","710928","Yoo Recruit LTD","CWC10293372","984.60","Agency Staff","190527824","14/11/2018","Digital Transformation Programme","Digital Transformation Programme","R1100"
"Wolverhampton City Council","http://opendatacommunities.org/id/metropolitan-district-council/wolverhampton","710928","Yoo Recruit LTD","CWC10293367","1,214.71","Agency Staff","190527819","14/11/2018","Strengthening Families","CP Area 8 - Children�s Village","R1100"
"Wolverhampton City Council","http://opendatacommunities.org/id/metropolitan-district-council/wolverhampton","710928","Yoo Recruit LTD","CWC10293375","1,143.30","Agency Staff","190527827","14/11/2018","Adults Assessment & Care Management North","Adult Services � North","R1100"
"Wolverhampton City Council","http://opendatacommunities.org/id/metropolitan-district-council/wolverhampton","710928","Yoo Recruit LTD","CWC10293392","1,190.52","Agency Staff","190527844","14/11/2018","Adults Assessment & Care Management SLC","Supporting Life Choices","R1100"
"Wolverhampton City Council","http://opendatacommunities.org/id/metropolitan-district-council/wolverhampton","710928","Yoo Recruit LTD","Consolidated65RD","-165,053.85","Agency Staff","190527452","14/11/2018","Central Corporate Budgets","Yoo Recruit Payments","R1100"
"Wolverhampton City Council","http://opendatacommunities.org/id/metropolitan-district-council/wolverhampton","710928","Yoo Recruit LTD","CWC1029325","1,251.71","Agency Staff","190527477","14/11/2018","Children and young people in care","LAC Transitions Team","R1100"
"Wolverhampton City Council","http://opendatacommunities.org/id/metropolitan-district-council/wolverhampton","710928","Yoo Recruit LTD","CWC1029335","126.00","Agency Staff","190527487","14/11/2018","Learning Disability Provider","Duke Street Bungalows","R1100"
"Wolverhampton City Council","http://opendatacommunities.org/id/metropolitan-district-council/wolverhampton","710928","Yoo Recruit LTD","CWC10293115","100.58","Agency Staff","190527567","14/11/2018","Leisure Services","Central Baths","R1100"
"Wolverhampton City Council","http://opendatacommunities.org/id/metropolitan-district-council/wolverhampton","710928","Yoo Recruit LTD","CWC10293117","110.63","Agency Staff","190527569","14/11/2018","Leisure Services","Central Baths","R1100"
"Wolverhampton City Council","http://opendatacommunities.org/id/metropolitan-district-council/wolverhampton","710928","Yoo Recruit LTD","CWC10289123","119.97","Agency Staff","190527993","14/11/2018","Leisure Services","Central Baths","R1100"
"Wolverhampton City Council","http://opendatacommunities.org/id/metropolitan-district-council/wolverhampton","710928","Yoo Recruit LTD","CWC1028984","123.10","Agency Staff","190527954","14/11/2018","Leisure Services","WV Active Catering","R1100"
"Wolverhampton City Council","http://opendatacommunities.org/id/metropolitan-district-council/wolverhampton","710928","Yoo Recruit LTD","Consolidated64RD","-211,463.39","Agency Staff","190527870","14/11/2018","Central Corporate Budgets","Yoo Recruit Payments","R1100"
"Wolverhampton City Council","http://opendatacommunities.org/id/metropolitan-district-council/wolverhampton","710928","Yoo Recruit LTD","CWC10289139","156.94","Agency Staff","190528009","14/11/2018","Safeguarding","MCA General","R1100"
"Wolverhampton City Council","http://opendatacommunities.org/id/metropolitan-district-council/wolverhampton","710928","Yoo Recruit LTD","CWC10289182","863.58","Agency Staff","190528052","14/11/2018","Customer Services","City Direct","R1100"
"Wolverhampton City Council","http://opendatacommunities.org/id/metropolitan-district-council/wolverhampton","710928","Yoo Recruit LTD","CWC10289190","109.98","Agency Staff","190528060","14/11/2018","Cleaning","Cleaning of Buildings - General","R1100"
"Wolverhampton City Council","http://opendatacommunities.org/id/metropolitan-district-council/wolverhampton","710928","Yoo Recruit LTD","CWC10289186","109.98","Agency Staff","190528056","14/11/2018","Cleaning","Cleaning of Buildings - General","R1100"
"Wolverhampton City Council","http://opendatacommunities.org/id/metropolitan-district-council/wolverhampton","710928","Yoo Recruit LTD","CWC10289193","122.20","Agency Staff","190528063","14/11/2018","Cleaning","Cleaning of Buildings - General","R1100"
"Wolverhampton City Council","http://opendatacommunities.org/id/metropolitan-district-council/wolverhampton","710928","Yoo Recruit LTD","CWC10289338","160.03","Agency Staff","190528208","14/11/2018","Special Educational Needs","Special - Transport","R1100"
"Wolverhampton City Council","http://opendatacommunities.org/id/metropolitan-district-council/wolverhampton","710928","Yoo Recruit LTD","CWC10289336","112.14","Agency Staff","190528206","14/11/2018","Special Educational Needs","Special - Transport","R1100"
"Wolverhampton City Council","http://opendatacommunities.org/id/metropolitan-district-council/wolverhampton","710928","Yoo Recruit LTD","CWC10289355","-1,518.15","Agency Staff","190528225","14/11/2018","Corporate Asset Management","Strategic Asset Management Team","R1100"
"Wolverhampton City Council","http://opendatacommunities.org/id/metropolitan-district-council/wolverhampton","710928","Yoo Recruit LTD","CWC10289408","1,214.71","Agency Staff","190528278","14/11/2018","Strengthening Families","CP Area 2 - Bilston/Rocket Pool","R1100"
"Wolverhampton City Council","http://opendatacommunities.org/id/metropolitan-district-council/wolverhampton","710928","Yoo Recruit LTD","CWC10289416","-1,227.38","Agency Staff","190528286","14/11/2018","Strengthening Families","CP Area 4- Bingley","R1100"
"Wolverhampton City Council","http://opendatacommunities.org/id/metropolitan-district-council/wolverhampton","710928","Yoo Recruit LTD","CWC10289400","1,214.71","Agency Staff","190528270","14/11/2018","Strengthening Families","CP Area 1 - Eastfield","R1100"
"Wolverhampton City Council","http://opendatacommunities.org/id/metropolitan-district-council/wolverhampton","710928","Yoo Recruit LTD","CWC10289409","1,214.34","Agency Staff","190528279","14/11/2018","Strengthening Families","CP Area 3 - Graiseley","R1100"
"Wolverhampton City Council","http://opendatacommunities.org/id/metropolitan-district-council/wolverhampton","710928","Yoo Recruit LTD","CWC10289421","-1,211.01","Agency Staff","190528291","14/11/2018","Strengthening Families","CP Area 4- Bingley","R1100"
"Wolverhampton City Council","http://opendatacommunities.org/id/metropolitan-district-council/wolverhampton","710928","Yoo Recruit LTD","CWC10289463","1,214.71","Agency Staff","190528333","14/11/2018","Strengthening Families","CP Area 4- Bingley","R1100"
"Wolverhampton City Council","http://opendatacommunities.org/id/metropolitan-district-council/wolverhampton","710928","Yoo Recruit LTD","CWC10289465","1,231.13","Agency Staff","190528335","14/11/2018","Strengthening Families","CP Area 4- Bingley","R1100"
"Wolverhampton City Council","http://opendatacommunities.org/id/metropolitan-district-council/wolverhampton","710928","Yoo Recruit LTD","CWC10289437","-13.50","Agency Staff","190528307","14/11/2018","Strengthening Families","CP Area 4- Bingley","R1100"
"Wolverhampton City Council","http://opendatacommunities.org/id/metropolitan-district-council/wolverhampton","710928","Yoo Recruit LTD","CWC10289427","-1,211.01","Agency Staff","190528297","14/11/2018","Strengthening Families","CP Area 4- Bingley","R1100"
"Wolverhampton City Council","http://opendatacommunities.org/id/metropolitan-district-council/wolverhampton","710928","Yoo Recruit LTD","CWC10289425","-1,211.01","Agency Staff","190528295","14/11/2018","Strengthening Families","CP Area 4- Bingley","R1100"
"Wolverhampton City Council","http://opendatacommunities.org/id/metropolitan-district-council/wolverhampton","710928","Yoo Recruit LTD","CWC10289491","1,211.01","Agency Staff","190528361","14/11/2018","Child Protection","MASH","R1100"
"Wolverhampton City Council","http://opendatacommunities.org/id/metropolitan-district-council/wolverhampton","710928","Yoo Recruit LTD","CWC10301108","48.88","Agency Staff","190534980","30/11/2018","Catering","Civic Centre Catering","R1100"
"Wolverhampton City Council","http://opendatacommunities.org/id/metropolitan-district-council/wolverhampton","710928","Yoo Recruit LTD","CWC10301189","59.99","Agency Staff","190535061","30/11/2018","Public Service Reform","Mayoral Expenses","R1100"
"Wolverhampton City Council","http://opendatacommunities.org/id/metropolitan-district-council/wolverhampton","710928","Yoo Recruit LTD","CWC10301207","2,390.52","Agency Staff","190535079","30/11/2018","Strategic Finance","Strategic Finance","R1100"
"Wolverhampton City Council","http://opendatacommunities.org/id/metropolitan-district-council/wolverhampton","710928","Yoo Recruit LTD","CWC10301293","25.72","Agency Staff","190535165","30/11/2018","Special Educational Needs","Special - Transport","R1100"
"Wolverhampton City Council","http://opendatacommunities.org/id/metropolitan-district-council/wolverhampton","710928","Yoo Recruit LTD","CWC10301351","26.97","Agency Staff","190535223","30/11/2018","Leisure Services","WV Active Business Support","R1100"
"Wolverhampton City Council","http://opendatacommunities.org/id/metropolitan-district-council/wolverhampton","710928","Yoo Recruit LTD","CWC10301361","28.13","Agency Staff","190535233","30/11/2018","Leisure Services","WV Active Business Support","R1100"
"Wolverhampton City Council","http://opendatacommunities.org/id/metropolitan-district-council/wolverhampton","710928","Yoo Recruit LTD","CWC10301353","28.13","Agency Staff","190535225","30/11/2018","Leisure Services","WV Active Business Support","R1100"
"Wolverhampton City Council","http://opendatacommunities.org/id/metropolitan-district-council/wolverhampton","710928","Yoo Recruit LTD","CWC10301357","28.13","Agency Staff","190535229","30/11/2018","Leisure Services","WV Active Business Support","R1100"
"Wolverhampton City Council","http://opendatacommunities.org/id/metropolitan-district-council/wolverhampton","710928","Yoo Recruit LTD","CWC10301364","28.13","Agency Staff","190535236","30/11/2018","Leisure Services","WV Active Business Support","R1100"
"Wolverhampton City Council","http://opendatacommunities.org/id/metropolitan-district-council/wolverhampton","710928","Yoo Recruit LTD","CWC10301442","1,552.89","Agency Staff","190535314","30/11/2018","Adults Assessment and Care Management MASH","Adult MASH","R1100"
"Wolverhampton City Council","http://opendatacommunities.org/id/metropolitan-district-council/wolverhampton","710928","Yoo Recruit LTD","CWC10301436","75.36","Agency Staff","190535308","30/11/2018","Strengthening Families","EI Area 4 - Bingley","R1100"
"Wolverhampton City Council","http://opendatacommunities.org/id/metropolitan-district-council/wolverhampton","710928","Yoo Recruit LTD","CWC10301433","31.40","Agency Staff","190535305","30/11/2018","Strengthening Families","EI Area 4 - Bingley","R1100"
"Wolverhampton City Council","http://opendatacommunities.org/id/metropolitan-district-council/wolverhampton","710928","Yoo Recruit LTD","CWC10289489","1,214.71","Agency Staff","190528359","14/11/2018","Strengthening Families","CP Area 8 - Children�s Village","R1100"
"Wolverhampton City Council","http://opendatacommunities.org/id/metropolitan-district-council/wolverhampton","710928","Yoo Recruit LTD","CWC10289459","1,214.71","Agency Staff","190528329","14/11/2018","Strengthening Families","CP Area 4- Bingley","R1100"
"Wolverhampton City Council","http://opendatacommunities.org/id/metropolitan-district-council/wolverhampton","710928","Yoo Recruit LTD","CWC10289508","1,223.59","Agency Staff","190528378","14/11/2018","Adults Assessment & Care Management North","Adult Services � North","R1100"
"Wolverhampton City Council","http://opendatacommunities.org/id/metropolitan-district-council/wolverhampton","710928","Yoo Recruit LTD","CWC10289507","992.10","Agency Staff","190528377","14/11/2018","Adults Assessment & Care Management North","Adult Services � North","R1100"
"Wolverhampton City Council","http://opendatacommunities.org/id/metropolitan-district-council/wolverhampton","710928","Yoo Recruit LTD","CWC10293105","253.27","Agency Staff","190527557","14/11/2018","Leisure Services","Bert Williams Leisure Centre","R1100"
"Wolverhampton City Council","http://opendatacommunities.org/id/metropolitan-district-council/wolverhampton","710928","Yoo Recruit LTD","CWC10289495","32.03","Agency Staff","190528365","14/11/2018","Strengthening Families","EI Area 2- Bilston/Rocket pool","R1100"
"Wolverhampton City Council","http://opendatacommunities.org/id/metropolitan-district-council/wolverhampton","710928","Yoo Recruit LTD","CWC10289452","736.43","Agency Staff","190528322","14/11/2018","Strengthening Families","CP Area 4- Bingley","R1100"
"Wolverhampton City Council","http://opendatacommunities.org/id/metropolitan-district-council/wolverhampton","710928","Yoo Recruit LTD","CWC10289500","30.52","Agency Staff","190528370","14/11/2018","Strengthening Families","EI Area 8 -  Children�s Village","R1100"
"Wolverhampton City Council","http://opendatacommunities.org/id/metropolitan-district-council/wolverhampton","710928","Yoo Recruit LTD","CWC10293172","122.20","Agency Staff","190527624","14/11/2018","Cleaning","Cleaning of Buildings - General","R1100"
"Wolverhampton City Council","http://opendatacommunities.org/id/metropolitan-district-council/wolverhampton","710928","Yoo Recruit LTD","CWC10293173","124.70","Agency Staff","190527625","14/11/2018","Cleaning","Cleaning of Buildings - General","R1100"
"Wolverhampton City Council","http://opendatacommunities.org/id/metropolitan-district-council/wolverhampton","710928","Yoo Recruit LTD","CWC10293314","164.06","Agency Staff","190527766","14/11/2018","Special Educational Needs","Special - Transport","R1100"
"Wolverhampton City Council","http://opendatacommunities.org/id/metropolitan-district-council/wolverhampton","710928","Yoo Recruit LTD","CWC10293371","1,211.01","Agency Staff","190527823","14/11/2018","Child Protection","MASH","R1100"
"Wolverhampton City Council","http://opendatacommunities.org/id/metropolitan-district-council/wolverhampton","710928","Yoo Recruit LTD","CWC102936","1,132.64","Agency Staff","190527458","14/11/2018","Children and young people in care","Adoption and Residence Team & Allowances","R1100"
"Wolverhampton City Council","http://opendatacommunities.org/id/metropolitan-district-council/wolverhampton","710928","Yoo Recruit LTD","CWC1029363","1,141.36","Agency Staff","190527515","14/11/2018","Mental Health Assesment & Care Management","Mental Health Assessment & Care Management","R1100"
"Wolverhampton City Council","http://opendatacommunities.org/id/metropolitan-district-council/wolverhampton","710928","Yoo Recruit LTD","CWC1029381","1,214.71","Agency Staff","190527533","14/11/2018","Adults Assessment & Care Management West","Hospital Team","R1100"
"Wolverhampton City Council","http://opendatacommunities.org/id/metropolitan-district-council/wolverhampton","710928","Yoo Recruit LTD","CWC10289124","119.97","Agency Staff","190527994","14/11/2018","Leisure Services","Central Baths","R1100"
"Wolverhampton City Council","http://opendatacommunities.org/id/metropolitan-district-council/wolverhampton","710928","Yoo Recruit LTD","CWC1028915","1,040.06","Agency Staff","190527885","14/11/2018","Youth Offending","Youth Offending Team","R1100"
"Wolverhampton City Council","http://opendatacommunities.org/id/metropolitan-district-council/wolverhampton","710928","Yoo Recruit LTD","CWC1028920","158.44","Agency Staff","190527890","14/11/2018","Learning Disability Provider","Duke Street Bungalows","R1100"
"Wolverhampton City Council","http://opendatacommunities.org/id/metropolitan-district-council/wolverhampton","710928","Yoo Recruit LTD","CWC1028922","166.38","Agency Staff","190527892","14/11/2018","Learning Disability Provider","Duke Street Bungalows","R1100"
"Wolverhampton City Council","http://opendatacommunities.org/id/metropolitan-district-council/wolverhampton","710928","Yoo Recruit LTD","CWC1028973","1,214.71","Agency Staff","190527943","14/11/2018","Adults Assessment & Care Management West","Hospital Team","R1100"
"Wolverhampton City Council","http://opendatacommunities.org/id/metropolitan-district-council/wolverhampton","710928","Yoo Recruit LTD","CWC1028974","1,249.12","Agency Staff","190527944","14/11/2018","Adults Assessment & Care Management West","Hospital Team","R1100"
"Wolverhampton City Council","http://opendatacommunities.org/id/metropolitan-district-council/wolverhampton","710928","Yoo Recruit LTD","CWC1028985","123.10","Agency Staff","190527955","14/11/2018","Leisure Services","WV Active Catering","R1100"
"Wolverhampton City Council","http://opendatacommunities.org/id/metropolitan-district-council/wolverhampton","710928","Yoo Recruit LTD","CWC1028954","1,223.59","Agency Staff","190527924","14/11/2018","Mental Health Assesment & Care Management","Mental Health Assessment & Care Management","R1100"
"Wolverhampton City Council","http://opendatacommunities.org/id/metropolitan-district-council/wolverhampton","710928","Yoo Recruit LTD","CWC1028953","1,141.36","Agency Staff","190527923","14/11/2018","Mental Health Assesment & Care Management","Mental Health Assessment & Care Management","R1100"
"Wolverhampton City Council","http://opendatacommunities.org/id/metropolitan-district-council/wolverhampton","710928","Yoo Recruit LTD","CWC1028955","111.24","Agency Staff","190527925","14/11/2018","Local Economy","Blakenhall Community & Healthy Living Centre","R1100"
"Wolverhampton City Council","http://opendatacommunities.org/id/metropolitan-district-council/wolverhampton","710928","Yoo Recruit LTD","CWC1028913","1,214.71","Agency Staff","190527883","14/11/2018","Children and young people in care","Looked After Team 1","R1100"
"Wolverhampton City Council","http://opendatacommunities.org/id/metropolitan-district-council/wolverhampton","710928","Yoo Recruit LTD","CWC10289103","108.12","Agency Staff","190527973","14/11/2018","Leisure Services","Bert Williams Leisure Centre","R1100"
"Wolverhampton City Council","http://opendatacommunities.org/id/metropolitan-district-council/wolverhampton","710928","Yoo Recruit LTD","CWC10289187","109.98","Agency Staff","190528057","14/11/2018","Cleaning","Cleaning of Buildings - General","R1100"
"Wolverhampton City Council","http://opendatacommunities.org/id/metropolitan-district-council/wolverhampton","710928","Yoo Recruit LTD","CWC10289213","119.15","Agency Staff","190528083","14/11/2018","Cleaning","Schools Cleaning","R1100"
"Wolverhampton City Council","http://opendatacommunities.org/id/metropolitan-district-council/wolverhampton","710928","Yoo Recruit LTD","CWC10289287","96.88","Agency Staff","190528157","14/11/2018","Visitor Economy","Bantock - Tea Rooms","R1100"
"Wolverhampton City Council","http://opendatacommunities.org/id/metropolitan-district-council/wolverhampton","710928","Yoo Recruit LTD","CWC10289244","1,180.58","Agency Staff","190528114","14/11/2018","Waste and Recycling Service","Waste Collection and Recycling Service - General","R1100"
"Wolverhampton City Council","http://opendatacommunities.org/id/metropolitan-district-council/wolverhampton","710928","Yoo Recruit LTD","CWC10289302","110.88","Agency Staff","190528172","14/11/2018","Adult Education","Admin & Support","R1100"
"Wolverhampton City Council","http://opendatacommunities.org/id/metropolitan-district-council/wolverhampton","710928","Yoo Recruit LTD","CWC10289317","856.56","Agency Staff","190528187","14/11/2018","Adult Education","Access & FE","R1100"
"Wolverhampton City Council","http://opendatacommunities.org/id/metropolitan-district-council/wolverhampton","710928","Yoo Recruit LTD","CWC10289379","112.52","Agency Staff","190528249","14/11/2018","Leisure Services","WV Active Business Support","R1100"
"Wolverhampton City Council","http://opendatacommunities.org/id/metropolitan-district-council/wolverhampton","710928","Yoo Recruit LTD","CWC10289356","-1,518.15","Agency Staff","190528226","14/11/2018","Corporate Asset Management","Strategic Asset Management Team","R1100"
"Wolverhampton City Council","http://opendatacommunities.org/id/metropolitan-district-council/wolverhampton","710928","Yoo Recruit LTD","CWC10289405","1,214.71","Agency Staff","190528275","14/11/2018","Strengthening Families","CP Area 2 - Bilston/Rocket Pool","R1100"
"Wolverhampton City Council","http://opendatacommunities.org/id/metropolitan-district-council/wolverhampton","710928","Yoo Recruit LTD","CWC10289413","-1,227.38","Agency Staff","190528283","14/11/2018","Strengthening Families","CP Area 4- Bingley","R1100"
"Wolverhampton City Council","http://opendatacommunities.org/id/metropolitan-district-council/wolverhampton","710928","Yoo Recruit LTD","CWC10289417","-1,227.38","Agency Staff","190528287","14/11/2018","Strengthening Families","CP Area 4- Bingley","R1100"
"Wolverhampton City Council","http://opendatacommunities.org/id/metropolitan-district-council/wolverhampton","710928","Yoo Recruit LTD","CWC10289460","1,214.71","Agency Staff","190528330","14/11/2018","Strengthening Families","CP Area 4- Bingley","R1100"
"Wolverhampton City Council","http://opendatacommunities.org/id/metropolitan-district-council/wolverhampton","710928","Yoo Recruit LTD","CWC10289466","1,231.13","Agency Staff","190528336","14/11/2018","Strengthening Families","CP Area 4- Bingley","R1100"
"Wolverhampton City Council","http://opendatacommunities.org/id/metropolitan-district-council/wolverhampton","710928","Yoo Recruit LTD","CWC10289438","-13.50","Agency Staff","190528308","14/11/2018","Strengthening Families","CP Area 4- Bingley","R1100"
"Wolverhampton City Council","http://opendatacommunities.org/id/metropolitan-district-council/wolverhampton","710928","Yoo Recruit LTD","CWC10289422","-1,211.01","Agency Staff","190528292","14/11/2018","Strengthening Families","CP Area 4- Bingley","R1100"
"Wolverhampton City Council","http://opendatacommunities.org/id/metropolitan-district-council/wolverhampton","710928","Yoo Recruit LTD","CWC10289453","984.90","Agency Staff","190528323","14/11/2018","Strengthening Families","CP Area 4- Bingley","R1100"
"Wolverhampton City Council","http://opendatacommunities.org/id/metropolitan-district-council/wolverhampton","710928","Yoo Recruit LTD","CWC10289454","1,214.71","Agency Staff","190528324","14/11/2018","Strengthening Families","CP Area 4- Bingley","R1100"
"Wolverhampton City Council","http://opendatacommunities.org/id/metropolitan-district-council/wolverhampton","710928","Yoo Recruit LTD","CWC10289484","1,214.71","Agency Staff","190528354","14/11/2018","Strengthening Families","CP Area 5-Whitemore Reans","R1100"
"Wolverhampton City Council","http://opendatacommunities.org/id/metropolitan-district-council/wolverhampton","710928","Yoo Recruit LTD","CWC10289492","1,211.01","Agency Staff","190528362","14/11/2018","Child Protection","MASH","R1100"
"Wolverhampton City Council","http://opendatacommunities.org/id/metropolitan-district-council/wolverhampton","710928","Yoo Recruit LTD","CWC10289515","1,165.72","Agency Staff","190528385","14/11/2018","Adults Assessment & Care Management SLC","Supporting Life Choices","R1100"
"Wolverhampton City Council","http://opendatacommunities.org/id/metropolitan-district-council/wolverhampton","710928","Yoo Recruit LTD","CWC10293240","-511.48","Agency Staff","190527692","14/11/2018","Licensing","Licensing - Private Hire Vehicles","R1100"
"Wolverhampton City Council","http://opendatacommunities.org/id/metropolitan-district-council/wolverhampton","710928","Yoo Recruit LTD","CWC10293244","-501.39","Agency Staff","190527696","14/11/2018","Licensing","Licensing - Private Hire Vehicles","R1100"
"Wolverhampton City Council","http://opendatacommunities.org/id/metropolitan-district-council/wolverhampton","710928","Yoo Recruit LTD","CWC10293276","-352.95","Agency Staff","190527728","14/11/2018","Adult Education","Direct Delivery Team ( L.& D.)","R1100"
"Wolverhampton City Council","http://opendatacommunities.org/id/metropolitan-district-council/wolverhampton","710928","Yoo Recruit LTD","CWC10293280","-352.95","Agency Staff","190527732","14/11/2018","Adult Education","Direct Delivery Team ( L.& D.)","R1100"
"Wolverhampton City Council","http://opendatacommunities.org/id/metropolitan-district-council/wolverhampton","710928","Yoo Recruit LTD","CWC102934","738.68","Agency Staff","190527456","14/11/2018","Children and young people in care","Adoption and Residence Team & Allowances","R1100"
"Wolverhampton City Council","http://opendatacommunities.org/id/metropolitan-district-council/wolverhampton","710928","Yoo Recruit LTD","CWC1029320","30.60","Agency Staff","190527472","14/11/2018","Children and young people in care","LAC Transitions Team","R1100"
"Wolverhampton City Council","http://opendatacommunities.org/id/metropolitan-district-council/wolverhampton","710928","Yoo Recruit LTD","CWC10289126","147.51","Agency Staff","190527996","14/11/2018","Leisure Services","Central Baths","R1100"
"Wolverhampton City Council","http://opendatacommunities.org/id/metropolitan-district-council/wolverhampton","710928","Yoo Recruit LTD","CWC10289298","1,947.50","Agency Staff","190528168","14/11/2018","Licensing","Licensing - General","R1100"
"Wolverhampton City Council","http://opendatacommunities.org/id/metropolitan-district-council/wolverhampton","710928","Yoo Recruit LTD","CWC10289429","-687.33","Agency Staff","190528299","14/11/2018","Strengthening Families","CP Area 4- Bingley","R1100"
"Wolverhampton City Council","http://opendatacommunities.org/id/metropolitan-district-council/wolverhampton","710928","Yoo Recruit LTD","CWC10293324","452.54","Agency Staff","190527776","14/11/2018","The Hub","Quality and Improvement","R1100"
"Wolverhampton City Council","http://opendatacommunities.org/id/metropolitan-district-council/wolverhampton","710928","Yoo Recruit LTD","CWC102891","251.22","Agency Staff","190527871","14/11/2018","Children and young people in care","Fostering Team & Allowances","R1100"
"Wolverhampton City Council","http://opendatacommunities.org/id/metropolitan-district-council/wolverhampton","710928","Yoo Recruit LTD","CWC10289496","32.03","Agency Staff","190528366","14/11/2018","Strengthening Families","EI Area 2- Bilston/Rocket pool","R1100"
"Wolverhampton City Council","http://opendatacommunities.org/id/metropolitan-district-council/wolverhampton","710928","Yoo Recruit LTD","CWC1029365","33.37","Agency Staff","190527517","14/11/2018","Local Economy","Blakenhall Community & Healthy Living Centre","R1100"
"Wolverhampton City Council","http://opendatacommunities.org/id/metropolitan-district-council/wolverhampton","710928","Yoo Recruit LTD","CWC10289319","21.13","Agency Staff","190528189","14/11/2018","Adult Education","Communication Studies","R1100"
"Wolverhampton City Council","http://opendatacommunities.org/id/metropolitan-district-council/wolverhampton","710928","Yoo Recruit LTD","CWC10289493","458.11","Agency Staff","190528363","14/11/2018","Digital Transformation Programme","Digital Transformation Programme","R1100"
"Wolverhampton City Council","http://opendatacommunities.org/id/metropolitan-district-council/wolverhampton","710928","Yoo Recruit LTD","CWC10293366","34.65","Agency Staff","190527818","14/11/2018","Strengthening Families","CP Area 7 - Low Hill","R1100"
"Wolverhampton City Council","http://opendatacommunities.org/id/metropolitan-district-council/wolverhampton","710928","Yoo Recruit LTD","CWC10301137","519.09","Agency Staff","190535009","30/11/2018","Customer Services","City Direct","R1100"
"Wolverhampton City Council","http://opendatacommunities.org/id/metropolitan-district-council/wolverhampton","710928","Yoo Recruit LTD","CWC10301150","-34.95","Agency Staff","190535022","30/11/2018","Cleaning","Cleaning of Buildings - General","R1100"
"Wolverhampton City Council","http://opendatacommunities.org/id/metropolitan-district-council/wolverhampton","710928","Yoo Recruit LTD","CWC10301278","535.35","Agency Staff","190535150","30/11/2018","Adult Education","Communication Studies","R1100"
"Wolverhampton City Council","http://opendatacommunities.org/id/metropolitan-district-council/wolverhampton","710928","Yoo Recruit LTD","CWC10301322","-492.47","Agency Staff","190535194","30/11/2018","Central Corporate Budgets","Non Distributed Costs - Pensions Fund","R1100"
"Wolverhampton City Council","http://opendatacommunities.org/id/metropolitan-district-council/wolverhampton","710928","Yoo Recruit LTD","CWC10301336","-299.48","Agency Staff","190535208","30/11/2018","Central Corporate Budgets","Non Distributed Costs - Pensions Fund","R1100"
"Wolverhampton City Council","http://opendatacommunities.org/id/metropolitan-district-council/wolverhampton","710928","Yoo Recruit LTD","CWC10293169","838.80","Agency Staff","190527621","14/11/2018","Customer Services","City Direct","R1100"
"Wolverhampton City Council","http://opendatacommunities.org/id/metropolitan-district-council/wolverhampton","710928","Yoo Recruit LTD","CWC10293353","760.72","Agency Staff","190527805","14/11/2018","The Hub","Payroll/HR","R1100"
"Wolverhampton City Council","http://opendatacommunities.org/id/metropolitan-district-council/wolverhampton","710928","Yoo Recruit LTD","CWC10289232","92.70","Agency Staff","190528102","14/11/2018","Public Service Reform","Register Office","R1100"
"Wolverhampton City Council","http://opendatacommunities.org/id/metropolitan-district-council/wolverhampton","710928","Yoo Recruit LTD","CWC10289530","441.92","Agency Staff","190528400","14/11/2018","Safeguarding","Safeguarding Partnership Board","R1100"
"Wolverhampton City Council","http://opendatacommunities.org/id/metropolitan-district-council/wolverhampton","710928","Yoo Recruit LTD","CWC1028951","20.25","Agency Staff","190527921","14/11/2018","Mental Health Assesment & Care Management","Mental Health Assessment & Care Management","R1100"
"Wolverhampton City Council","http://opendatacommunities.org/id/metropolitan-district-council/wolverhampton","710928","Yoo Recruit LTD","CWC10293293","343.65","Agency Staff","190527745","14/11/2018","Adult Education","Direct Delivery Team ( L.& D.)","R1100"
"Wolverhampton City Council","http://opendatacommunities.org/id/metropolitan-district-council/wolverhampton","710928","Yoo Recruit LTD","CWC10301191","3,188.15","Agency Staff","190535063","30/11/2018","ICTS","Application Management","R1100"
"Wolverhampton City Council","http://opendatacommunities.org/id/metropolitan-district-council/wolverhampton","710928","Yoo Recruit LTD","CWC10301209","2,988.15","Agency Staff","190535081","30/11/2018","Strategic Finance","Strategic Finance","R1100"
"Wolverhampton City Council","http://opendatacommunities.org/id/metropolitan-district-council/wolverhampton","710928","Yoo Recruit LTD","CWC10301239","2,988.15","Agency Staff","190535111","30/11/2018","Housing","Private Sector Housing","R1100"
"Wolverhampton City Council","http://opendatacommunities.org/id/metropolitan-district-council/wolverhampton","710928","Yoo Recruit LTD","CWC1030164","61.55","Agency Staff","190534936","30/11/2018","Leisure Services","WV Active Catering","R1100"
"Wolverhampton City Council","http://opendatacommunities.org/id/metropolitan-district-council/wolverhampton","710928","Yoo Recruit LTD","CWC1029321","32.40","Agency Staff","190527473","14/11/2018","Children and young people in care","LAC Transitions Team","R1100"
"Wolverhampton City Council","http://opendatacommunities.org/id/metropolitan-district-council/wolverhampton","710928","Yoo Recruit LTD","CWC10289532","31.98","Agency Staff","190528402","14/11/2018","Visitor Economy","VEC - Casual & Agency Staff","R1100"
"Wolverhampton City Council","http://opendatacommunities.org/id/metropolitan-district-council/wolverhampton","710928","Yoo Recruit LTD","CWC10293292","343.65","Agency Staff","190527744","14/11/2018","Adult Education","Direct Delivery Team ( L.& D.)","R1100"
"Wolverhampton City Council","http://opendatacommunities.org/id/metropolitan-district-council/wolverhampton","710928","Yoo Recruit LTD","CWC10293294","343.65","Agency Staff","190527746","14/11/2018","Adult Education","Direct Delivery Team ( L.& D.)","R1100"
"Wolverhampton City Council","http://opendatacommunities.org/id/metropolitan-district-council/wolverhampton","710928","Yoo Recruit LTD","CWC10293290","343.65","Agency Staff","190527742","14/11/2018","Adult Education","Direct Delivery Team ( L.& D.)","R1100"
"Wolverhampton City Council","http://opendatacommunities.org/id/metropolitan-district-council/wolverhampton","710928","Yoo Recruit LTD","CWC10301453","3,091.30","Agency Staff","190535325","30/11/2018","Digital Transformation Programme","Digital Transformation Programme (Recharge to Capital)","R1100"
"Wolverhampton City Council","http://opendatacommunities.org/id/metropolitan-district-council/wolverhampton","710928","Yoo Recruit LTD","CWC10301154","61.10","Agency Staff","190535026","30/11/2018","Cleaning","Cleaning of Buildings - General","R1100"
"Wolverhampton City Council","http://opendatacommunities.org/id/metropolitan-district-council/wolverhampton","710928","Yoo Recruit LTD","CWC10301240","2,988.15","Agency Staff","190535112","30/11/2018","Housing","Private Sector Housing","R1100"
"Wolverhampton City Council","http://opendatacommunities.org/id/metropolitan-district-council/wolverhampton","710928","Yoo Recruit LTD","CWC1029393","33.33","Agency Staff","190527545","14/11/2018","Leisure Services","Bert Williams Leisure Centre","R1100"
"Wolverhampton City Council","http://opendatacommunities.org/id/metropolitan-district-council/wolverhampton","710928","Yoo Recruit LTD","CWC10297158","546.53","Agency Staff","190530965","21/11/2018","Leisure Services","Bert Williams Leisure Centre","R1100"
"Wolverhampton City Council","http://opendatacommunities.org/id/metropolitan-district-council/wolverhampton","710928","Yoo Recruit LTD","CWC10297159","586.52","Agency Staff","190530966","21/11/2018","Leisure Services","Bert Williams Leisure Centre","R1100"
"Wolverhampton City Council","http://opendatacommunities.org/id/metropolitan-district-council/wolverhampton","710928","Yoo Recruit LTD","CWC10297163","67.76","Agency Staff","190530970","21/11/2018","Leisure Services","Central Baths","R1100"
"Wolverhampton City Council","http://opendatacommunities.org/id/metropolitan-district-council/wolverhampton","710928","Yoo Recruit LTD","CWC10297145","373.24","Agency Staff","190530952","21/11/2018","Leisure Services","Bert Williams Leisure Centre","R1100"
"Wolverhampton City Council","http://opendatacommunities.org/id/metropolitan-district-council/wolverhampton","710928","Yoo Recruit LTD","CWC10297164","69.98","Agency Staff","190530971","21/11/2018","Leisure Services","Central Baths","R1100"
"Wolverhampton City Council","http://opendatacommunities.org/id/metropolitan-district-council/wolverhampton","710928","Yoo Recruit LTD","CWC10297177","203.28","Agency Staff","190530984","21/11/2018","Leisure Services","Central Baths","R1100"
"Wolverhampton City Council","http://opendatacommunities.org/id/metropolitan-district-council/wolverhampton","710928","Yoo Recruit LTD","CWC10297186","503.21","Agency Staff","190530993","21/11/2018","Leisure Services","Central Baths","R1100"
"Wolverhampton City Council","http://opendatacommunities.org/id/metropolitan-district-council/wolverhampton","710928","Yoo Recruit LTD","CWC10297188","365.70","Agency Staff","190530995","21/11/2018","Catering","Education Catering - General Overheads","R1100"
"Wolverhampton City Council","http://opendatacommunities.org/id/metropolitan-district-council/wolverhampton","710928","Yoo Recruit LTD","CWC10297280","194.45","Agency Staff","190531087","21/11/2018","Waste and Recycling Service","Waste Collection and Recycling Service - General","R1100"
"Wolverhampton City Council","http://opendatacommunities.org/id/metropolitan-district-council/wolverhampton","710928","Yoo Recruit LTD","CWC10297285","496.17","Agency Staff","190531092","21/11/2018","Waste and Recycling Service","Waste Collection and Recycling Service - General","R1100"
"Wolverhampton City Council","http://opendatacommunities.org/id/metropolitan-district-council/wolverhampton","710928","Yoo Recruit LTD","CWC10297300","211.20","Agency Staff","190531107","21/11/2018","Public Service Reform","Electoral Registration","R1100"
"Wolverhampton City Council","http://opendatacommunities.org/id/metropolitan-district-council/wolverhampton","710928","Yoo Recruit LTD","CWC10297348","210.18","Agency Staff","190531155","21/11/2018","Adult Education","Education & Training","R1100"
"Wolverhampton City Council","http://opendatacommunities.org/id/metropolitan-district-council/wolverhampton","710928","Yoo Recruit LTD","CWC10297272","208.42","Agency Staff","190531079","21/11/2018","Markets","Shopmobility","R1100"
"Wolverhampton City Council","http://opendatacommunities.org/id/metropolitan-district-council/wolverhampton","710928","Yoo Recruit LTD","CWC10297263","3,188.15","Agency Staff","190531070","21/11/2018","ICTS","Application Management","R1100"
"Wolverhampton City Council","http://opendatacommunities.org/id/metropolitan-district-council/wolverhampton","710928","Yoo Recruit LTD","CWC10297271","183.90","Agency Staff","190531078","21/11/2018","Markets","Shopmobility","R1100"
"Wolverhampton City Council","http://opendatacommunities.org/id/metropolitan-district-council/wolverhampton","710928","Yoo Recruit LTD","CWC10297315","186.62","Agency Staff","190531122","21/11/2018","Visitor Economy","Education And Access","R1100"
"Wolverhampton City Council","http://opendatacommunities.org/id/metropolitan-district-council/wolverhampton","710928","Yoo Recruit LTD","CWC10297246","183.30","Agency Staff","190531053","21/11/2018","Cleaning","Cleaning of Buildings - General","R1100"
"Wolverhampton City Council","http://opendatacommunities.org/id/metropolitan-district-council/wolverhampton","710928","Yoo Recruit LTD","CWC10297527","62.30","Agency Staff","190531334","21/11/2018","Visitor Economy","VEC - Casual & Agency Staff","R1100"
"Wolverhampton City Council","http://opendatacommunities.org/id/metropolitan-district-council/wolverhampton","710928","Yoo Recruit LTD","CWC10297329","518.21","Agency Staff","190531136","21/11/2018","Licensing","Licensing - Private Hire Vehicles","R1100"
"Wolverhampton City Council","http://opendatacommunities.org/id/metropolitan-district-council/wolverhampton","710928","Yoo Recruit LTD","CWC10297337","175.15","Agency Staff","190531144","21/11/2018","Adult Education","Continuing Education","R1100"
"Wolverhampton City Council","http://opendatacommunities.org/id/metropolitan-district-council/wolverhampton","710928","Yoo Recruit LTD","CWC10297383","21.37","Agency Staff","190531190","21/11/2018","Special Educational Needs","Special - Transport","R1100"
"Wolverhampton City Council","http://opendatacommunities.org/id/metropolitan-district-council/wolverhampton","710928","Yoo Recruit LTD","CWC10297411","28.13","Agency Staff","190531218","21/11/2018","Leisure Services","WV Active Business Support","R1100"
"Wolverhampton City Council","http://opendatacommunities.org/id/metropolitan-district-council/wolverhampton","710928","Yoo Recruit LTD","CWC10297424","196.91","Agency Staff","190531231","21/11/2018","Leisure Services","WV Active Business Support","R1100"
"Wolverhampton City Council","http://opendatacommunities.org/id/metropolitan-district-council/wolverhampton","710928","Yoo Recruit LTD","CWC10297423","165.24","Agency Staff","190531230","21/11/2018","Leisure Services","WV Active Business Support","R1100"
"Wolverhampton City Council","http://opendatacommunities.org/id/metropolitan-district-council/wolverhampton","710928","Yoo Recruit LTD","CWC10297437","510.97","Agency Staff","190531244","21/11/2018","The Hub","Payroll/HR","R1100"
"Wolverhampton City Council","http://opendatacommunities.org/id/metropolitan-district-council/wolverhampton","710928","Yoo Recruit LTD","CWC10297484","11.25","Agency Staff","190531291","21/11/2018","Child Protection","MASH","R1100"
"Wolverhampton City Council","http://opendatacommunities.org/id/metropolitan-district-council/wolverhampton","710928","Yoo Recruit LTD","CWC10297489","32.03","Agency Staff","190531296","21/11/2018","Strengthening Families","EI Area 1- Eastfield","R1100"
"Wolverhampton City Council","http://opendatacommunities.org/id/metropolitan-district-council/wolverhampton","710928","Yoo Recruit LTD","CWC10297535","197.76","Agency Staff","190531342","21/11/2018","Visitor Economy","VEC - Casual & Agency Staff","R1100"
"Wolverhampton City Council","http://opendatacommunities.org/id/metropolitan-district-council/wolverhampton","710928","Yoo Recruit LTD","CWC10297434","1,184.04","Agency Staff","190531241","21/11/2018","Human Resources","HR Investigations","R1100"
"Wolverhampton City Council","http://opendatacommunities.org/id/metropolitan-district-council/wolverhampton","710928","Yoo Recruit LTD","CWC10297502","2.70","Agency Staff","190531309","21/11/2018","Adults Assessment & Care Management SLC","Supporting Life Choices","R1100"
"Wolverhampton City Council","http://opendatacommunities.org/id/metropolitan-district-council/wolverhampton","710928","Yoo Recruit LTD","CWC10297500","2.25","Agency Staff","190531307","21/11/2018","Adults Assessment & Care Management SLC","Supporting Life Choices","R1100"
"Wolverhampton City Council","http://opendatacommunities.org/id/metropolitan-district-council/wolverhampton","710928","Yoo Recruit LTD","CWC10297528","73.26","Agency Staff","190531335","21/11/2018","Visitor Economy","VEC - Casual & Agency Staff","R1100"
"Wolverhampton City Council","http://opendatacommunities.org/id/metropolitan-district-council/wolverhampton","710928","Yoo Recruit LTD","CWC10297331","160.16","Agency Staff","190531138","21/11/2018","Adult Education","Admin & Support","R1100"
"Wolverhampton City Council","http://opendatacommunities.org/id/metropolitan-district-council/wolverhampton","710928","Yoo Recruit LTD","CWC10297330","578.78","Agency Staff","190531137","21/11/2018","Licensing","Licensing - Private Hire Vehicles","R1100"
"Wolverhampton City Council","http://opendatacommunities.org/id/metropolitan-district-council/wolverhampton","710928","Yoo Recruit LTD","CWC10297338","175.15","Agency Staff","190531145","21/11/2018","Adult Education","Continuing Education","R1100"
"Wolverhampton City Council","http://opendatacommunities.org/id/metropolitan-district-council/wolverhampton","710928","Yoo Recruit LTD","CWC10297286","499.52","Agency Staff","190531093","21/11/2018","Waste and Recycling Service","Waste Collection and Recycling Service - General","R1100"
"Wolverhampton City Council","http://opendatacommunities.org/id/metropolitan-district-council/wolverhampton","710928","Yoo Recruit LTD","CWC10297385","184.65","Agency Staff","190531192","21/11/2018","Special Educational Needs","Special - Transport","R1100"
"Wolverhampton City Council","http://opendatacommunities.org/id/metropolitan-district-council/wolverhampton","710928","Yoo Recruit LTD","CWC10297407","13.41","Agency Staff","190531214","21/11/2018","Leisure Services","WV Active Business Support","R1100"
"Wolverhampton City Council","http://opendatacommunities.org/id/metropolitan-district-council/wolverhampton","710928","Yoo Recruit LTD","CWC10297408","26.82","Agency Staff","190531215","21/11/2018","Leisure Services","WV Active Business Support","R1100"
"Wolverhampton City Council","http://opendatacommunities.org/id/metropolitan-district-council/wolverhampton","710928","Yoo Recruit LTD","CWC10297446","23.04","Agency Staff","190531253","21/11/2018","Strengthening Families","CP Area 2 - Bilston/Rocket Pool","R1100"
"Wolverhampton City Council","http://opendatacommunities.org/id/metropolitan-district-council/wolverhampton","710928","Yoo Recruit LTD","CWC10297458","1,211.01","Agency Staff","190531265","21/11/2018","Strengthening Families","CP Area 3 - Graiseley","R1100"
"Wolverhampton City Council","http://opendatacommunities.org/id/metropolitan-district-council/wolverhampton","710928","Yoo Recruit LTD","CWC10297459","1,214.34","Agency Staff","190531266","21/11/2018","Strengthening Families","CP Area 3 - Graiseley","R1100"
"Wolverhampton City Council","http://opendatacommunities.org/id/metropolitan-district-council/wolverhampton","710928","Yoo Recruit LTD","CWC10297463","3.60","Agency Staff","190531270","21/11/2018","Strengthening Families","CP Area 4- Bingley","R1100"
"Wolverhampton City Council","http://opendatacommunities.org/id/metropolitan-district-council/wolverhampton","710928","Yoo Recruit LTD","CWC10297490","32.03","Agency Staff","190531297","21/11/2018","Strengthening Families","EI Area 2- Bilston/Rocket pool","R1100"
"Wolverhampton City Council","http://opendatacommunities.org/id/metropolitan-district-council/wolverhampton","710928","Yoo Recruit LTD","CWC10297505","8.55","Agency Staff","190531312","21/11/2018","Adults Assessment & Care Management SLC","Supporting Life Choices","R1100"
"Wolverhampton City Council","http://opendatacommunities.org/id/metropolitan-district-council/wolverhampton","710928","Yoo Recruit LTD","CWC10297501","2.25","Agency Staff","190531308","21/11/2018","Adults Assessment & Care Management SLC","Supporting Life Choices","R1100"
"Wolverhampton City Council","http://opendatacommunities.org/id/metropolitan-district-council/wolverhampton","710928","Yoo Recruit LTD","CWC10293401","419.61","Agency Staff","190527853","14/11/2018","Safeguarding","Safeguarding Partnership Board","R1100"
"Wolverhampton City Council","http://opendatacommunities.org/id/metropolitan-district-council/wolverhampton","710928","Yoo Recruit LTD","CWC10293144","323.55","Agency Staff","190527596","14/11/2018","Customer Services","City Direct","R1100"
"Wolverhampton City Council","http://opendatacommunities.org/id/metropolitan-district-council/wolverhampton","710928","Yoo Recruit LTD","CWC1028987","467.78","Agency Staff","190527957","14/11/2018","Leisure Services","WV Active Catering","R1100"
"Wolverhampton City Council","http://opendatacommunities.org/id/metropolitan-district-council/wolverhampton","710928","Yoo Recruit LTD","CWC10289314","419.36","Agency Staff","190528184","14/11/2018","Adult Education","Access & FE","R1100"
"Wolverhampton City Council","http://opendatacommunities.org/id/metropolitan-district-council/wolverhampton","710928","Yoo Recruit LTD","CWC10289342","244.20","Agency Staff","190528212","14/11/2018","Special Educational Needs","Special - Transport","R1100"
"Wolverhampton City Council","http://opendatacommunities.org/id/metropolitan-district-council/wolverhampton","710928","Yoo Recruit LTD","CWC10289184","48.88","Agency Staff","190528054","14/11/2018","Cleaning","Cleaning of Buildings - General","R1100"
"Wolverhampton City Council","http://opendatacommunities.org/id/metropolitan-district-council/wolverhampton","710928","Yoo Recruit LTD","CWC10289276","432.14","Agency Staff","190528146","14/11/2018","Public Service Reform","Electoral Registration","R1100"
"Wolverhampton City Council","http://opendatacommunities.org/id/metropolitan-district-council/wolverhampton","710928","Yoo Recruit LTD","CWC10289449","33.75","Agency Staff","190528319","14/11/2018","Strengthening Families","CP Area 4- Bingley","R1100"
"Wolverhampton City Council","http://opendatacommunities.org/id/metropolitan-district-council/wolverhampton","710928","Yoo Recruit LTD","CWC10297506","14.40","Agency Staff","190531313","21/11/2018","Adults Assessment & Care Management SLC","Supporting Life Choices","R1100"
"Wolverhampton City Council","http://opendatacommunities.org/id/metropolitan-district-council/wolverhampton","710928","Yoo Recruit LTD","CWC1029756","6.30","Agency Staff","190530863","21/11/2018","Mental Health Assesment & Care Management","Mental Health Assessment & Care Management","R1100"
"Wolverhampton City Council","http://opendatacommunities.org/id/metropolitan-district-council/wolverhampton","710928","Yoo Recruit LTD","CWC1029776","1,214.71","Agency Staff","190530883","21/11/2018","Adults Assessment & Care Management West","Hospital Team","R1100"
"Wolverhampton City Council","http://opendatacommunities.org/id/metropolitan-district-council/wolverhampton","710928","Yoo Recruit LTD","CWC102978","1,132.64","Agency Staff","190530815","21/11/2018","Children and young people in care","Adoption and Residence Team & Allowances","R1100"
"Wolverhampton City Council","http://opendatacommunities.org/id/metropolitan-district-council/wolverhampton","710928","Yoo Recruit LTD","CWC1029743","593.13","Agency Staff","190530850","21/11/2018","Learning Disability Provider","Duke Street Bungalows","R1100"
"Wolverhampton City Council","http://opendatacommunities.org/id/metropolitan-district-council/wolverhampton","710928","Yoo Recruit LTD","CWC1029773","3.60","Agency Staff","190530880","21/11/2018","Adults Assessment & Care Management West","Hospital Team","R1100"
"Wolverhampton City Council","http://opendatacommunities.org/id/metropolitan-district-council/wolverhampton","710928","Yoo Recruit LTD","CWC1029749","574.80","Agency Staff","190530856","21/11/2018","Emergency Duty Team","Emergency Duty Team","R1100"
"Wolverhampton City Council","http://opendatacommunities.org/id/metropolitan-district-council/wolverhampton","710928","Yoo Recruit LTD","CWC1029759","1,180.05","Agency Staff","190530866","21/11/2018","Mental Health Assesment & Care Management","Mental Health Assessment & Care Management","R1100"
"Wolverhampton City Council","http://opendatacommunities.org/id/metropolitan-district-council/wolverhampton","710928","Yoo Recruit LTD","CWC1029719","11.25","Agency Staff","190530826","21/11/2018","Youth Offending","Youth Offending Team","R1100"
"Wolverhampton City Council","http://opendatacommunities.org/id/metropolitan-district-council/wolverhampton","710928","Yoo Recruit LTD","CWC10297114","33.95","Agency Staff","190530921","21/11/2018","Leisure Services","Bert Williams Leisure Centre","R1100"
"Wolverhampton City Council","http://opendatacommunities.org/id/metropolitan-district-council/wolverhampton","710928","Yoo Recruit LTD","CWC10297154","499.88","Agency Staff","190530961","21/11/2018","Leisure Services","Bert Williams Leisure Centre","R1100"
"Wolverhampton City Council","http://opendatacommunities.org/id/metropolitan-district-council/wolverhampton","710928","Yoo Recruit LTD","CWC10297174","158.70","Agency Staff","190530981","21/11/2018","Leisure Services","Central Baths","R1100"
"Wolverhampton City Council","http://opendatacommunities.org/id/metropolitan-district-council/wolverhampton","710928","Yoo Recruit LTD","CWC10297173","157.95","Agency Staff","190530980","21/11/2018","Leisure Services","Central Baths","R1100"
"Wolverhampton City Council","http://opendatacommunities.org/id/metropolitan-district-council/wolverhampton","710928","Yoo Recruit LTD","CWC10297201","345.12","Agency Staff","190531008","21/11/2018","Customer Services","City Direct","R1100"
"Wolverhampton City Council","http://opendatacommunities.org/id/metropolitan-district-council/wolverhampton","710928","Yoo Recruit LTD","CWC10297187","194.56","Agency Staff","190530994","21/11/2018","Visitor Economy","Northicote Farm","R1100"
"Wolverhampton City Council","http://opendatacommunities.org/id/metropolitan-district-council/wolverhampton","710928","Yoo Recruit LTD","CWC10297216","505.78","Agency Staff","190531023","21/11/2018","Customer Services","City Direct","R1100"
"Wolverhampton City Council","http://opendatacommunities.org/id/metropolitan-district-council/wolverhampton","710928","Yoo Recruit LTD","CWC10297190","209.14","Agency Staff","190530997","21/11/2018","Catering","Meals on Wheels","R1100"
"Wolverhampton City Council","http://opendatacommunities.org/id/metropolitan-district-council/wolverhampton","710928","Yoo Recruit LTD","CWC10297195","199.65","Agency Staff","190531002","21/11/2018","Customer Services","City Direct","R1100"
"Wolverhampton City Council","http://opendatacommunities.org/id/metropolitan-district-council/wolverhampton","710928","Yoo Recruit LTD","CWC10297192","186.72","Agency Staff","190530999","21/11/2018","Customer Services","City Direct","R1100"
"Wolverhampton City Council","http://opendatacommunities.org/id/metropolitan-district-council/wolverhampton","710928","Yoo Recruit LTD","CWC10297284","496.17","Agency Staff","190531091","21/11/2018","Waste and Recycling Service","Waste Collection and Recycling Service - General","R1100"
"Wolverhampton City Council","http://opendatacommunities.org/id/metropolitan-district-council/wolverhampton","710928","Yoo Recruit LTD","CWC10297351","856.56","Agency Staff","190531158","21/11/2018","Adult Education","Access & FE","R1100"
"Wolverhampton City Council","http://opendatacommunities.org/id/metropolitan-district-council/wolverhampton","710928","Yoo Recruit LTD","CWC10297250","311.61","Agency Staff","190531057","21/11/2018","Cleaning","Cleaning of Buildings - General","R1100"
